Workbook

Sheet 1_Player
A1: The BucknellAuto Game -- | B1: Reverse Auctions for Automotive Exterior Parts | E1: 1 | F1: 1 | G1: 1
B2: FALSE | E2: 1
A3: Auction parameters | B3: Input | C3: Repeat steps 1-4 | J3: (Robot picture from Microsoft Excel 2010 clipart)
A4: Invited suppliers (N): | B4: 3 | C4: for 20 auctions.
A5: Administrative cost (K): | B5: 10 | C5: 0.8
A6: Risk attitude (β): | B6: 0.6 | E6: =IF(B_2="","",B_1*IF(AND(PA_1="Yes",OR(alpha=1,SA_1="Yes")),1,IF(AND(PA_1="Yes",SA_1="No"),alpha,IF(AND(PA_1="No",SA_1="Yes"),1-alpha,0)))) ->  | F6: =IF(B_2="","",B_2*IF(AND(PA_2="Yes",OR(alpha=1,SA_2="Yes")),1,IF(AND(PA_2="Yes",SA_2="No"),alpha,IF(AND(PA_2="No",SA_2="Yes"),1-alpha,0)))) ->  | G6: =IF(B_3="","",B_3*IF(AND(PA_3="Yes",OR(alpha=1,SA_3="Yes")),1,IF(AND(PA_3="Yes",SA_3="No"),alpha,IF(AND(PA_3="No",SA_3="Yes"),1-alpha,0)))) ->  | H6: =IF(B_4="","",IF(N=3,"--",B_4*IF(AND(PA_4="Yes",OR(alpha=1,SA_4="Yes")),1,IF(AND(PA_4="Yes",SA_4="No"),alpha,IF(AND(PA_4="No",SA_4="Yes"),1-alpha,0))))) ->  | I6: =IF(B_5="","",IF(N=3,"--",B_5*IF(AND(PA_5="Yes",OR(alpha=1,SA_5="Yes")),1,IF(AND(PA_5="Yes",SA_5="No"),alpha,IF(AND(PA_5="No",SA_5="Yes"),1-alpha,0))))) -> 
A7: Award portion (α): | B7: 1 | E7: =LARGE($E$11:$I$11,1) -> 0 | F7: =LARGE($E$11:$I$11,2) ->  | G7: =LARGE($E$11:$I$11,3) ->  | H7: =LARGE($E$11:$I$11,4) ->  | I7: =LARGE($E$11:$I$11,5) -> 
A8: Seed (s): | B8: 1
A9: Equilib. Cap (ca*) | B9: 0.4121989636 | F9: AmherstParts | G9: BowdoinParts | H9: CarletonParts | I9: DavidsonParts
A10: Solver constraint (Eqn 3) | B10: =(1-ca)^(N-1)*(1-ca)^beta+(N-1)*ca*(1-ca)^(N-2)*((1-alpha)*(1-ca))^beta-(k*0.01)^beta -> -6.342647229e-07 | D10: Total Mfg. Cost (C)
D11: Total Bid (b) | E11: =B_1 -> 0 | F11: =IF(C_2="","",IF(C_2<=ca*100,C_2+F12,0)) ->  | G11: =IF(C_3="","",IF(C_3<=ca*100,C_3+G12,0)) ->  | H11: =IF(C_4="","",IF(N=3,"--",IF(C_4<=ca*100,C_4+H12,0))) ->  | I11: =IF(C_5="","",IF(N=3,"--",IF(C_5<=ca*100,C_5+I12,0))) -> 
F12: =100*('Integral chart'!E10005/(((1-alpha^beta)*(1-ca)^(N-1)+alpha^beta*(1-C_2*0.01)^(N-1)+(N-1)*(1-alpha)^beta*C_2*0.01*(1-C_2*0.01)^(N-2))^(1/beta))+(((1-alpha^beta)*(1-ca)^(N-1)+alpha^beta*(1-ca)^(N-1)+(N-1)*(1-alpha)^beta*ca*(1-ca)^(N-2))^(1/beta)*(1-ca))/(((1-alpha^beta)*(1-ca)^(N-1)+alpha^beta*(1-C_2*0.01)^(N-1)+(N-1)*(1-alpha)^beta*C_2*0.01*(1-C_2*0.01)^(N-2))^(1/beta))) -> 30.75921789 | G12: =100*('Integral chart'!F10005/(((1-alpha^beta)*(1-ca)^(N-1)+alpha^beta*(1-C_3*0.01)^(N-1)+(N-1)*(1-alpha)^beta*C_3*0.01*(1-C_3*0.01)^(N-2))^(1/beta))+(((1-alpha^beta)*(1-ca)^(N-1)+alpha^beta*(1-ca)^(N-1)+(N-1)*(1-alpha)^beta*ca*(1-ca)^(N-2))^(1/beta)*(1-ca))/(((1-alpha^beta)*(1-ca)^(N-1)+alpha^beta*(1-C_3*0.01)^(N-1)+(N-1)*(1-alpha)^beta*C_3*0.01*(1-C_3*0.01)^(N-2))^(1/beta))) -> 30.75921789 | H12: =100*('Integral chart'!G10005/(((1-alpha^beta)*(1-ca)^(N-1)+alpha^beta*(1-C_4*0.01)^(N-1)+(N-1)*(1-alpha)^beta*C_4*0.01*(1-C_4*0.01)^(N-2))^(1/beta))+(((1-alpha^beta)*(1-ca)^(N-1)+alpha^beta*(1-ca)^(N-1)+(N-1)*(1-alpha)^beta*ca*(1-ca)^(N-2))^(1/beta)*(1-ca))/(((1-alpha^beta)*(1-ca)^(N-1)+alpha^beta*(1-C_4*0.01)^(N-1)+(N-1)*(1-alpha)^beta*C_4*0.01*(1-C_4*0.01)^(N-2))^(1/beta))) -> 30.75921789 | I12: =100*('Integral chart'!H10005/(((1-alpha^beta)*(1-ca)^(N-1)+alpha^beta*(1-C_5*0.01)^(N-1)+(N-1)*(1-alpha)^beta*C_5*0.01*(1-C_5*0.01)^(N-2))^(1/beta))+(((1-alpha^beta)*(1-ca)^(N-1)+alpha^beta*(1-ca)^(N-1)+(N-1)*(1-alpha)^beta*ca*(1-ca)^(N-2))^(1/beta)*(1-ca))/(((1-alpha^beta)*(1-ca)^(N-1)+alpha^beta*(1-C_5*0.01)^(N-1)+(N-1)*(1-alpha)^beta*C_5*0.01*(1-C_5*0.01)^(N-2))^(1/beta))) -> 30.75921789
D13: Participating? | E13: =IF(B_1="","", IF(B_1>0,"Yes","No")) ->  | F13: =IF(B_2="","", IF(B_2>0,"Yes","No")) ->  | G13: =IF(B_3="","", IF(B_3>0,"Yes","No")) ->  | H13: =IF(B_4="","",IF(B_4>0,"Yes","No")) ->  | I13: =IF(B_5="","",IF(B_5>0,"Yes","No")) -> 
D14: 1st Award? (A=α) | E14: =IF(B_2="","",IF(N=3, IF(J_1="No","No", IF(AND(J_1="Yes",J_2="No",J_3="No"),"Yes", IF(AND(J_1="Yes",J_2="Yes",J_3="No",MIN(B_1,B_2)=B_1),"Yes", IF(AND(J_1="Yes",J_2="No",J_3="Yes",MIN(B_1,B_3)=B_1),"Yes", IF(AND(J_1="Yes",J_2="Yes",J_3="Yes",MIN(B_1,B_2,B_3)=B_1),"Yes","No"))))), IF(J_1="No","No",IF(AND(J_1="Yes",J_2="No",J_3="No",J_4="No",J_5="No"),"Yes", IF(AND(J_1="Yes",J_2="Yes",J_3="No",J_4="No",J_5="No",MIN(B_1,B_2)=B_1),"Yes", IF(AND(J_1="Yes",J_2="No",J_3="Yes",J_4="No",J_5="No",MIN(B_1,B_3)=B_1),"Yes", IF(AND(J_1="Yes",J_2="No",J_3="No",J_4="Yes",J_5="No",MIN(B_1,B_4)=B_1),"Yes", IF(AND(J_1="Yes",J_2="No",J_3="No",J_4="No",J_5="Yes",MIN(B_1,B_5)=B_1),"Yes", IF(AND(J_1="Yes",J_2="Yes",J_3="Yes",J_4="No",J_5="No",MIN(B_1,B_2,B_3)=B_1),"Yes", IF(AND(J_1="Yes",J_2="Yes",J_3="No",J_4="Yes",J_5="No",MIN(B_1,B_2,B_4)=B_1),"Yes", IF(AND(J_1="Yes",J_2="Yes",J_3="No",J_4="No",J_5="Yes",MIN(B_1,B_2,B_5)=B_1),"Yes", IF(AND(J_1="Yes",J_2="No",J_3="Yes",J_4="Yes",J_5="No",MIN(B_1,B_3,B_4)=B_1),"Yes", IF(AND(J_1="Yes",J_2="No",J_3="Yes",J_4="No",J_5="Yes",MIN(B_1,B_3,B_5)=B_1),"Yes", IF(AND(J_1="Yes",J_2="No",J_3="No",J_4="Yes",J_5="Yes",MIN(B_1,B_4,B_5)=B_1),"Yes", IF(AND(J_1="Yes",J_2="Yes",J_3="Yes",J_4="Yes",J_5="No",MIN(B_1,B_2,B_3,B_4)=B_1),"Yes", IF(AND(J_1="Yes",J_2="Yes",J_3="Yes",J_4="No",J_5="Yes",MIN(B_1,B_2,B_3, B_5)=B_1),"Yes", IF(AND(J_1="Yes",J_2="Yes",J_3="No",J_4="Yes",J_5="Yes",MIN(B_1,B_2,B_4, B_5)=B_1),"Yes", IF(AND(J_1="Yes",J_2="No",J_3="Yes",J_4="Yes",J_5="Yes",MIN(B_1,B_3,B_4, B_5)=B_1),"Yes", IF(AND(J_1="Yes",J_2="Yes",J_3="Yes",J_4="Yes",J_5="Yes",MIN(B_1,B_2,B_3,B_4,B_5)=B_1),"Yes","No"))))))))))))))))))) ->  | F14: =IF(B_2="","",IF(N=3, IF(J_2="No","No", IF(AND(J_2="Yes",J_1="No",J_3="No"),"Yes", IF(AND(J_2="Yes",J_1="Yes",J_3="No",MIN(B_2,B_1)=B_2),"Yes", IF(AND(J_2="Yes",J_1="No",J_3="Yes",MIN(B_2,B_3)=B_2),"Yes", IF(AND(J_2="Yes",J_1="Yes",J_3="Yes",MIN(B_2,B_1,B_3)=B_2),"Yes","No"))))), IF(J_2="No","No", IF(AND(J_2="Yes",J_1="No",J_3="No",J_4="No",J_5="No"),"Yes", IF(AND(J_2="Yes",J_1="Yes",J_3="No",J_4="No",J_5="No",MIN(B_2,B_1)=B_2),"Yes", IF(AND(J_2="Yes",J_1="No",J_3="Yes",J_4="No",J_5="No",MIN(B_2,B_3)=B_2),"Yes", IF(AND(J_2="Yes",J_1="No",J_3="No",J_4="Yes",J_5="No",MIN(B_2,B_4)=B_2),"Yes", IF(AND(J_2="Yes",J_1="No",J_3="No",J_4="No",J_5="Yes",MIN(B_2,B_5)=B_2),"Yes", IF(AND(J_2="Yes",J_1="Yes",J_3="Yes",J_4="No",J_5="No",MIN(B_2,B_1,B_3)=B_2),"Yes", IF(AND(J_2="Yes",J_1="Yes",J_3="No",J_4="Yes",J_5="No",MIN(B_2,B_1,B_4)=B_2),"Yes", IF(AND(J_2="Yes",J_1="Yes",J_3="No",J_4="No",J_5="Yes",MIN(B_2,B_1,B_5)=B_2),"Yes", IF(AND(J_2="Yes",J_1="No",J_3="Yes",J_4="Yes",J_5="No",MIN(B_2,B_3,B_4)=B_2),"Yes", IF(AND(J_2="Yes",J_1="No",J_3="Yes",J_4="No",J_5="Yes",MIN(B_2,B_3,B_5)=B_2),"Yes", IF(AND(J_2="Yes",J_1="No",J_3="No",J_4="Yes",J_5="Yes",MIN(B_2,B_4,B_5)=B_2),"Yes", IF(AND(J_2="Yes",J_1="Yes",J_3="Yes",J_4="Yes",J_5="No",MIN(B_2,B_1,B_3,B_4)=B_2),"Yes", IF(AND(J_2="Yes",J_1="Yes",J_3="Yes",J_4="No",J_5="Yes",MIN(B_2,B_1,B_3,B_5)=B_2),"Yes", IF(AND(J_2="Yes",J_1="Yes",J_3="No",J_4="Yes",J_5="Yes",MIN(B_2,B_1,B_4,B_5)=B_2),"Yes", IF(AND(J_2="Yes",J_1="No",J_3="Yes",J_4="Yes",J_5="Yes",MIN(B_2,B_3,B_4,B_5)=B_2),"Yes", IF(AND(J_2="Yes",J_1="Yes",J_3="Yes",J_4="Yes",J_5="Yes",MIN(B_2,B_1,B_3,B_4,B_5)=B_2),"Yes","No"))))))))))))))))))) ->  | G14: =IF(B_3="","", IF(N=3,IF(J_3="No","No", IF(AND(J_3="Yes",J_1="No",J_2="No"),"Yes", IF(AND(J_3="Yes",J_1="Yes",J_2="No",MIN(B_3,B_1)=B_3),"Yes", IF(AND(J_3="Yes",J_1="No",J_2="Yes",MIN(B_3,B_2)=B_3),"Yes", IF(AND(J_3="Yes",J_1="Yes",J_2="Yes",MIN(B_3,B_1,B_2)=B_3),"Yes","No"))))), IF(J_3="No","No", IF(AND(J_3="Yes",J_1="No",J_2="No",J_4="No",J_5="No"),"Yes", IF(AND(J_3="Yes",J_1="Yes",J_2="No",J_4="No",J_5="No",MIN(B_3,B_1)=B_3),"Yes", IF(AND(J_3="Yes",J_1="No",J_2="Yes",J_4="No",J_5="No",MIN(B_3,B_2)=B_3),"Yes", IF(AND(J_3="Yes",J_1="No",J_2="No",J_4="Yes",J_5="No",MIN(B_3,B_4)=B_3),"Yes", IF(AND(J_3="Yes",J_1="No",J_2="No",J_4="No",J_5="Yes",MIN(B_3,B_5)=B_3),"Yes", IF(AND(J_3="Yes",J_1="Yes",J_2="Yes",J_4="No",J_5="No",MIN(B_3,B_1,B_2)=B_3),"Yes", IF(AND(J_3="Yes",J_1="Yes",J_2="No",J_4="Yes",J_5="No",MIN(B_3,B_1,B_4)=B_3),"Yes", IF(AND(J_3="Yes",J_1="Yes",J_2="No",J_4="No",J_5="Yes",MIN(B_3,B_1,B_5)=B_3),"Yes", IF(AND(J_3="Yes",J_1="No",J_2="Yes",J_4="Yes",J_5="No",MIN(B_3,B_2,B_4)=B_3),"Yes", IF(AND(J_3="Yes",J_1="No",J_2="Yes",J_4="No",J_5="Yes",MIN(J_3,J_2,J_5)=B_3),"Yes", IF(AND(J_3="Yes",J_1="No",J_2="No",J_4="Yes",J_5="Yes",MIN(B_3,B_4,B_5)=B_3),"Yes", IF(AND(J_3="Yes",J_1="Yes",J_2="Yes",J_4="Yes",J_5="No",MIN(B_3,B_1,B_2,B_4)=B_3),"Yes", IF(AND(J_3="Yes",J_1="Yes",J_2="Yes",J_4="No",J_5="Yes",MIN(B_3,B_1,B_2,B_5)=B_3),"Yes", IF(AND(J_3="Yes",J_1="Yes",J_2="No",J_4="Yes",J_5="Yes",MIN(B_3,B_1,B_4,B_5)=B_3),"Yes", IF(AND(J_3="Yes",J_1="No",J_2="Yes",J_4="Yes",J_5="Yes",MIN(B_3,B_2,B_4,B_5)=B_3),"Yes", IF(AND(J_3="Yes",J_1="Yes",J_2="Yes",J_4="Yes",J_5="Yes",MIN(B_3,B_1,B_2,B_4,B_5)=B_3),"Yes","No"))))))))))))))))))) ->  | H14: =IF(B_4="","", IF(J_4="No","No", IF(AND(J_4="Yes",J_1="No",J_2="No",J_3="No",J_5="No"),"Yes", IF(AND(J_4="Yes",J_1="Yes",J_2="No",J_3="No",J_5="No",MIN(B_4,B_1)=B_4),"Yes", IF(AND(J_4="Yes",J_1="No",J_2="Yes",J_3="No",J_5="No",MIN(B_4,B_2)=B_4),"Yes", IF(AND(J_4="Yes",J_1="No",J_2="No",J_3="Yes",J_5="No",MIN(B_4,B_3)=B_4),"Yes", IF(AND(J_4="Yes",J_1="No",J_2="No",J_3="No",J_5="Yes",MIN(B_4,B_5)=B_4),"Yes", IF(AND(J_4="Yes",J_1="Yes",J_2="Yes",J_3="No",J_5="No",MIN(B_4,B_1,B_2)=B_4),"Yes", IF(AND(J_4="Yes",J_1="Yes",J_2="No",J_3="Yes",J_5="No",MIN(B_4,B_1,B_3)=B_4),"Yes", IF(AND(J_4="Yes",J_1="Yes",J_2="No",J_3="No",J_5="Yes",MIN(B_4,B_1,B_5)=B_4),"Yes", IF(AND(J_4="Yes",J_1="No",J_2="Yes",J_3="Yes",J_5="No",MIN(B_4,B_2,B_3)=B_4),"Yes", IF(AND(J_4="Yes",J_1="No",J_2="Yes",J_3="No",J_5="Yes",MIN(B_4,B_2,B_5)=B_4),"Yes", IF(AND(J_4="Yes",J_1="No",J_2="No",J_3="Yes",J_5="Yes",MIN(B_4,B_3,B_5)=B_4),"Yes", IF(AND(J_4="Yes",J_1="Yes",J_2="Yes",J_3="Yes",J_5="No",MIN(B_4,B_1,B_2,B_3)=B_4),"Yes", IF(AND(J_4="Yes",J_1="Yes",J_2="Yes",J_3="No",J_5="Yes",MIN(B_4,B_1,B_2,B_5)=B_4),"Yes", IF(AND(J_4="Yes",J_1="Yes",J_2="No",J_3="Yes",J_5="Yes",MIN(B_4,B_1,B_3,B_5)=B_4),"Yes", IF(AND(J_4="Yes",J_1="No",J_2="Yes",J_3="Yes",J_5="Yes",MIN(B_4,B_2,B_3,B_5)=B_4),"Yes", IF(AND(J_4="Yes",J_1="Yes",J_2="Yes",J_3="Yes",J_5="Yes",MIN(B_4,B_1,B_2,B_3,B_5)=B_4),"Yes","No")))))))))))))))))) ->  | I14: =IF(B_5="","",IF(J_5="No","No", IF(AND(J_5="Yes",J_1="No",J_2="No",J_3="No",J_4="No"),"Yes", IF(AND(J_5="Yes",J_1="Yes",J_2="No",J_3="No",J_4="No",MIN(B_5,B_1)=B_5),"Yes", IF(AND(J_5="Yes",J_1="No",J_2="Yes",J_3="No",J_4="No",MIN(B_5,B_2)=B_5),"Yes", IF(AND(J_5="Yes",J_1="No",J_2="No",J_3="Yes",J_4="No",MIN(B_5,B_3)=B_5),"Yes", IF(AND(J_5="Yes",J_1="No",J_2="No",J_3="No",J_4="Yes",MIN(B_5,B_4)=B_5),"Yes", IF(AND(J_5="Yes",J_1="Yes",J_2="Yes",J_3="No",J_4="No",MIN(B_5,B_1,B_2)=B_5),"Yes", IF(AND(J_5="Yes",J_1="Yes",J_2="No",J_3="Yes",J_4="No",MIN(B_5,B_1,B_3)=B_5),"Yes", IF(AND(J_5="Yes",J_1="Yes",J_2="No",J_3="No",J_4="Yes",MIN(B_5,B_1,B_4)=B_5),"Yes", IF(AND(J_5="Yes",J_1="No",J_2="Yes",J_3="Yes",J_4="No",MIN(B_5,B_2,B_3)=B_5),"Yes", IF(AND(J_5="Yes",J_1="No",J_2="Yes",J_3="No",J_4="Yes",MIN(B_5,B_2,B_4)=B_5),"Yes", IF(AND(J_5="Yes",J_1="No",J_2="No",J_3="Yes",J_4="Yes",MIN(B_5,B_3,B_4)=B_5),"Yes", IF(AND(J_5="Yes",J_1="Yes",J_2="Yes",J_3="Yes",J_4="No",MIN(B_5,B_1,B_2,B_3)=B_5),"Yes", IF(AND(J_5="Yes",J_1="Yes",J_2="Yes",J_3="No",J_4="Yes",MIN(B_5,B_1,B_2,B_4)=B_5),"Yes", IF(AND(J_5="Yes",J_1="Yes",J_2="No",J_3="Yes",J_4="Yes",MIN(B_5,B_1,B_3,B_4)=B_5),"Yes", IF(AND(J_5="Yes",J_1="No",J_2="Yes",J_3="Yes",J_4="Yes",MIN(B_5,B_2,B_3,B_4)=B_5),"Yes", IF(AND(J_5="Yes",J_1="Yes",J_2="Yes",J_3="Yes",J_4="Yes",MIN(B_5,B_1,B_2,B_3,B_4)=B_5),"Yes","No")))))))))))))))))) -> 
D15: 2nd Award? (A=1-α) | E15: =IF(alpha=1,"",IF(B_2="","", IF(N=3,IF(J_1="No","No", IF(AND(J_1="Yes",J_2="No",J_3="No"),"Yes", IF(AND(J_1="Yes",J_2="Yes",J_3="No",MAX(B_1,B_2,B_3)=B_1),"Yes", IF(AND(J_1="Yes",J_2="No",J_3="Yes",MAX(B_1,B_2,B_3)=B_1),"Yes", IF(AND(J_1="Yes",J_2="Yes",J_3="Yes",SMALL((B_1,B_2,B_3),2)=B_1),"Yes","No"))))), IF(J_1="No","No",IF(AND(J_1="Yes",J_2="No",J_3="No",J_4="No",J_5="No"),"Yes", IF(AND(J_1="Yes",J_2="Yes",J_3="No",J_4="No",J_5="No",MAX(B_1,B_2,B_3,B_4,B_5)=B_1),"Yes", IF(AND(J_1="Yes",J_2="No",J_3="Yes",J_4="No",J_5="No",MAX(B_1,B_2,B_3,B_4,B_5)=B_1),"Yes", IF(AND(J_1="Yes",J_2="No",J_3="No",J_4="Yes",J_5="No",MAX(B_1,B_2,B_3,B_4,B_5)=B_1),"Yes", IF(AND(J_1="Yes",J_2="No",J_3="No",J_4="No",J_5="Yes",MAX(B_1,B_2,B_3,B_4,B_5)=B_1),"Yes", IF(AND(J_1="Yes",J_2="Yes",J_3="Yes",J_4="No",J_5="No",MIN(B_1,B_2,B_3)<B_1,MAX(B_1,B_2,B_3)>B_1),"Yes", IF(AND(J_1="Yes",J_2="Yes",J_3="No",J_4="Yes",J_5="No",MIN(B_1,B_2,B_4)<B_1,MAX(B_1,B_2,B_4)>B_1),"Yes", IF(AND(J_1="Yes",J_2="Yes",J_3="No",J_4="No",J_5="Yes",MIN(B_1,B_2,B_5)<B_1,MAX(B_1,B_2,B_5)>B_1),"Yes", IF(AND(J_1="Yes",J_2="No",J_3="Yes",J_4="Yes",J_5="No",MIN(B_1,B_3,B_4)<B_1,MAX(B_1,B_3,B_4)>B_1),"Yes", IF(AND(J_1="Yes",J_2="No",J_3="Yes",J_4="No",J_5="Yes",MIN(B_1,B_3,B_5)<B_1,MAX(B_1,B_3,B_5)>B_1),"Yes", IF(AND(J_1="Yes",J_2="No",J_3="No",J_4="Yes",J_5="Yes",MIN(B_1,B_4,B_5)<B_1,MAX(B_1,B_4,B_5)>B_1),"Yes", IF(AND(J_1="Yes",J_2="Yes",J_3="Yes",J_4="Yes",J_5="No",SMALL((B_1,B_2,B_3,B_4),2)=B_1),"Yes", IF(AND(J_1="Yes",J_2="Yes",J_3="Yes",J_4="No",J_5="Yes",SMALL((B_1,B_2,B_3,B_5),2)=B_1),"Yes", IF(AND(J_1="Yes",J_2="Yes",J_3="No",J_4="Yes",J_5="Yes",SMALL((B_1,B_2,B_4,B_5),2)=B_1),"Yes", IF(AND(J_1="Yes",J_2="No",J_3="Yes",J_4="Yes",J_5="Yes",SMALL((B_1,B_3,B_4,B_5),2)=B_1),"Yes", IF(AND(J_1="Yes",J_2="Yes",J_3="Yes",J_4="Yes",J_5="Yes",SMALL((B_1,B_2,B_3,B_4,B_5),2)=B_1),"Yes","No")))))))))))))))))))) ->  | F15: =IF(alpha=1,"",IF(B_2="","",IF(N=3,IF(J_2="No","No", IF(AND(J_2="Yes",J_1="No",J_3="No"),"Yes", IF(AND(J_2="Yes",J_1="Yes",J_3="No",MAX(B_1,B_2,B_3)=B_2),"Yes", IF(AND(J_2="Yes",J_1="No",J_3="Yes",MAX(B_1,B_2,B_3)=B_2),"Yes", IF(AND(J_2="Yes",J_1="Yes",J_3="Yes",SMALL((B_1,B_2,B_3),2)=B_2),"Yes","No"))))), IF(J_2="No","No",IF(AND(J_2="Yes",J_1="No",J_3="No",J_4="No",J_5="No"),"Yes", IF(AND(J_2="Yes",J_1="Yes",J_3="No",J_4="No",J_5="No",MAX(B_1,B_2,B_3,B_4,B_5)=B_2),"Yes", IF(AND(J_2="Yes",J_1="No",J_3="Yes",J_4="No",J_5="No",MAX(B_1,B_2,B_3,B_4,B_5)=B_2),"Yes", IF(AND(J_2="Yes",J_1="No",J_3="No",J_4="Yes",J_5="No",MAX(B_1,B_2,B_3,B_4,B_5)=B_2),"Yes", IF(AND(J_2="Yes",J_1="No",J_3="No",J_4="No",J_5="Yes",MAX(B_1,B_2,B_3,B_4,B_5)=B_2),"Yes", IF(AND(J_2="Yes",J_1="Yes",J_3="Yes",J_4="No",J_5="No",MIN(B_2,B_1,B_3)<B_2,MAX(B_2,B_1,B_3)>B_2),"Yes", IF(AND(J_2="Yes",J_1="Yes",J_3="No",J_4="Yes",J_5="No",MIN(B_2,B_1,B_4)<B_2,MAX(B_2,B_1,B_4)>B_2),"Yes", IF(AND(J_2="Yes",J_1="Yes",J_3="No",J_4="No",J_5="Yes",MIN(B_2,B_1,B_5)<B_2,MAX(B_2,B_1,B_5)>B_2),"Yes", IF(AND(J_2="Yes",J_1="No",J_3="Yes",J_4="Yes",J_5="No",MIN(B_2,B_3,B_4)<B_2,MAX(B_2,B_3,B_4)>B_2),"Yes", IF(AND(J_2="Yes",J_1="No",J_3="Yes",J_4="No",J_5="Yes",MIN(B_2,B_3,B_5)<B_2,MAX(B_2,B_3,B_5)>B_2),"Yes", IF(AND(J_2="Yes",J_1="No",J_3="No",J_4="Yes",J_5="Yes",MIN(B_2,B_4,B_5)<B_2,MAX(B_2,B_4,B_5)>B_2),"Yes", IF(AND(J_2="Yes",J_1="Yes",J_3="Yes",J_4="Yes",J_5="No",SMALL((B_1,B_2,B_3,B_4),2)=B_2),"Yes", IF(AND(J_2="Yes",J_1="Yes",J_3="Yes",J_4="No",J_5="Yes",SMALL((B_1,B_2,B_3,B_5),2)=B_2),"Yes", IF(AND(J_2="Yes",J_1="Yes",J_3="No",J_4="Yes",J_5="Yes",SMALL((B_1,B_2,B_4,B_5),2)=B_2),"Yes", IF(AND(J_2="Yes",J_1="No",J_3="Yes",J_4="Yes",J_5="Yes",SMALL((B_2,B_3,B_4,B_5),2)=B_2),"Yes", IF(AND(J_2="Yes",J_1="Yes",J_3="Yes",J_4="Yes",J_5="Yes",SMALL((B_1,B_2,B_3,B_4,B_5),2)=B_2),"Yes","No")))))))))))))))))))) ->  | G15: =IF(alpha=1,"",IF(B_3="","",IF(N=3, IF(J_3="No","No",IF(AND(J_3="Yes",J_1="No",J_2="No"),"Yes", IF(AND(J_3="Yes",J_1="Yes",J_2="No",MAX(B_1,B_2,B_3)=B_3),"Yes", IF(AND(J_3="Yes",J_1="No",J_2="Yes",MAX(B_1,B_2,B_3)=B_3),"Yes", IF(AND(J_3="Yes",J_1="Yes",J_2="Yes",SMALL((B_1,B_2,B_3),2)=B_3),"Yes","No"))))), IF(J_3="No","No",IF(AND(J_3="Yes",J_1="No",J_2="No",J_4="No",J_5="No"),"Yes", IF(AND(J_3="Yes",J_1="Yes",J_2="No",J_4="No",J_5="No",MAX(B_1,B_2,B_3,B_4,B_5)=B_3),"Yes", IF(AND(J_3="Yes",J_1="No",J_2="Yes",J_4="No",J_5="No",MAX(B_1,B_2,B_3,B_4,B_5)=B_3),"Yes", IF(AND(J_3="Yes",J_1="No",J_2="No",J_4="Yes",J_5="No",MAX(B_1,B_2,B_3,B_4,B_5)=B_3),"Yes", IF(AND(J_3="Yes",J_1="No",J_2="No",J_4="No",J_5="Yes",MAX(B_1,B_2,B_3,B_4,B_5)=B_3),"Yes", IF(AND(J_3="Yes",J_1="Yes",J_2="Yes",J_4="No",J_5="No",MIN(B_3,B_1,B_2)<B_3,MAX(B_3,B_1,B_2)>B_3),"Yes", IF(AND(J_3="Yes",J_1="Yes",J_2="No",J_4="Yes",J_5="No",MIN(B_3,B_1,B_4)<B_3,MAX(B_3,B_1,B_4)>B_3),"Yes", IF(AND(J_3="Yes",J_1="Yes",J_2="No",J_4="No",J_5="Yes",MIN(B_3,B_1,B_5)<B_3,MAX(B_3,B_1,B_5)>B_3),"Yes", IF(AND(J_3="Yes",J_1="No",J_2="Yes",J_4="Yes",J_5="No",MIN(B_3,B_2,B_4)<B_3,MAX(B_3,B_2,B_4)>B_3),"Yes", IF(AND(J_3="Yes",J_1="No",J_2="Yes",J_4="No",J_5="Yes",MIN(B_3,B_2,B_5)<B_3,MAX(B_3,B_2,B_5)>B_3),"Yes", IF(AND(J_3="Yes",J_1="No",J_2="No",J_4="Yes",J_5="Yes",MIN(B_3,B_4,B_5)<B_3,MAX(B_3,B_4,B_5)>B_3),"Yes", IF(AND(J_3="Yes",J_1="Yes",J_2="Yes",J_4="Yes",J_5="No",SMALL((B_1,B_2,B_3,B_4),2)=B_3),"Yes", IF(AND(J_3="Yes",J_1="Yes",J_2="Yes",J_4="No",J_5="Yes",SMALL((B_1,B_2,B_3,B_5),2)=B_3),"Yes", IF(AND(J_3="Yes",J_1="Yes",J_2="No",J_4="Yes",J_5="Yes",SMALL((B_1,B_3,B_4,B_5),2)=B_3),"Yes", IF(AND(J_3="Yes",J_1="No",J_2="Yes",J_4="Yes",J_5="Yes",SMALL((B_2,B_3,B_4,B_5),2)=B_3),"Yes", IF(AND(J_3="Yes",J_1="Yes",J_2="Yes",J_4="Yes",J_5="Yes",SMALL((B_1,B_2,B_3,B_4,B_5),2)=B_3),"Yes","No")))))))))))))))))))) ->  | H15: =IF(alpha=1,"",IF(B_4="","",IF(J_4="No","No", IF(AND(J_4="Yes",J_1="No",J_2="No",J_3="No",J_5="No"),"Yes", IF(AND(J_4="Yes",J_1="Yes",J_2="No",J_3="No",J_5="No",MAX(B_1,B_2,B_3,B_4,B_5)=B_4),"Yes", IF(AND(J_4="Yes",J_1="No",J_2="Yes",J_3="No",J_5="No",MAX(B_1,B_2,B_3,B_4,B_5)=B_4),"Yes", IF(AND(J_4="Yes",J_1="No",J_2="No",J_3="Yes",J_5="No",MAX(B_1,B_2,B_3,B_4,B_5)=B_4),"Yes", IF(AND(J_4="Yes",J_1="No",J_2="No",J_3="No",J_5="Yes",MAX(B_1,B_2,B_3,B_4,B_5)=B_4),"Yes", IF(AND(J_4="Yes",J_1="Yes",J_2="Yes",J_3="No",J_5="No",MIN(B_4,B_2,B_2)<B_4,MAX(B_4,B_1,B_2)>B_4),"Yes", IF(AND(J_4="Yes",J_1="Yes",J_2="No",J_3="Yes",J_5="No",MIN(B_4,B_1,B_3)<B_4,MAX(B_4,B_1,B_3)>B_4),"Yes", IF(AND(J_4="Yes",J_1="Yes",J_2="No",J_3="No",J_5="Yes",MIN(B_4,B_1,B_5)<B_4,MAX(B_4,B_1,B_5)>B_4),"Yes", IF(AND(J_4="Yes",J_1="No",J_2="Yes",J_3="Yes",J_5="No",MIN(B_4,B_2,B_3)<B_4,MAX(B_4,B_2,B_3)>B_4),"Yes", IF(AND(J_4="Yes",J_1="No",J_2="Yes",J_3="No",J_5="Yes",MIN(B_4,B_2,B_5)<B_4,MAX(B_4,B_2,B_5)>B_4),"Yes", IF(AND(J_4="Yes",J_1="No",J_2="No",J_3="Yes",J_5="Yes",MIN(B_4,B_3,B_5)<B_4,MAX(B_4,B_3,B_5)>B_4),"Yes", IF(AND(J_4="Yes",J_1="Yes",J_2="Yes",J_3="Yes",J_5="No",SMALL((B_1,B_2,B_3,B_4),2)=B_4),"Yes", IF(AND(J_4="Yes",J_1="Yes",J_2="Yes",J_3="No",J_5="Yes",SMALL((B_1,B_2,B_4,B_5),2)=B_4),"Yes", IF(AND(J_4="Yes",J_1="Yes",J_2="No",J_3="Yes",J_5="Yes",SMALL((B_1,B_3,B_4,B_5),2)=B_4),"Yes", IF(AND(J_4="Yes",J_1="No",J_2="Yes",J_3="Yes",J_5="Yes",SMALL((B_2,B_3,B_4,B_5),2)=B_4),"Yes", IF(AND(J_4="Yes",J_1="Yes",J_2="Yes",J_3="Yes",J_5="Yes",SMALL((B_1,B_2,B_3,B_4,B_5),2)=B_4),"Yes","No"))))))))))))))))))) ->  | I15: =IF(alpha=1,"",IF(B_5="","",IF(J_5="No","No", IF(AND(J_5="Yes",J_1="No",J_2="No",J_3="No",J_4="No"),"Yes", IF(AND(J_5="Yes",J_1="Yes",J_2="No",J_3="No",J_4="No",MAX(B_1,B_2,B_3,B_4,B_5)=B_5),"Yes", IF(AND(J_5="Yes",J_1="No",J_2="Yes",J_3="No",J_4="No",MAX(B_1,B_2,B_3,B_4,B_5)=B_5),"Yes", IF(AND(J_5="Yes",J_1="No",J_2="No",J_3="Yes",J_4="No",MAX(B_1,B_2,B_3,B_4,B_5)=B_5),"Yes", IF(AND(J_5="Yes",J_1="No",J_2="No",J_3="No",J_4="Yes",MAX(B_1,B_2,B_3,B_4,B_5)=B_5),"Yes", IF(AND(J_5="Yes",J_1="Yes",J_2="Yes",J_3="No",J_4="No",MIN(B_5,B_1,B_2)<B_5,MAX(B_5,B_1,B_2)>B_5),"Yes", IF(AND(J_5="Yes",J_1="Yes",J_2="No",J_3="Yes",J_4="No",MIN(B_5,B_1,B_3)<B_5,MAX(B_5,B_1,B_3)>B_5),"Yes", IF(AND(J_5="Yes",J_1="Yes",J_2="No",J_3="No",J_4="Yes",MIN(B_5,B_1,B_4)<B_5,MAX(B_5,B_1,B_4)>B_5),"Yes", IF(AND(J_5="Yes",J_1="No",J_2="Yes",J_3="Yes",J_4="No",MIN(B_5,B_2,B_3)<B_5,MAX(B_5,B_2,B_3)>B_5),"Yes", IF(AND(J_5="Yes",J_1="No",J_2="Yes",J_3="No",J_4="Yes",MIN(B_5,B_2,B_4)<B_5,MAX(B_5,B_2,B_4)>B_5),"Yes", IF(AND(J_5="Yes",J_1="No",J_2="No",J_3="Yes",J_4="Yes",MIN(B_5,B_3,B_4)<B_5,MAX(B_5,B_3,B_4)>B_5),"Yes", IF(AND(J_5="Yes",J_1="Yes",J_2="Yes",J_3="Yes",J_4="No",SMALL((B_1,B_2,B_3,B_5),2)=B_5),"Yes", IF(AND(J_5="Yes",J_1="Yes",J_2="Yes",J_3="No",J_4="Yes",SMALL((B_1,B_2,B_4,B_5),2)=B_5),"Yes", IF(AND(J_5="Yes",J_1="Yes",J_2="No",J_3="Yes",J_4="Yes",SMALL((B_1,B_3,B_4,B_5),2)=B_5),"Yes", IF(AND(J_5="Yes",J_1="No",J_2="Yes",J_3="Yes",J_4="Yes",SMALL((B_2,B_3,B_4,B_5),2)=B_5),"Yes", IF(AND(J_5="Yes",J_1="Yes",J_2="Yes",J_3="Yes",J_4="Yes",SMALL((B_1,B_2,B_3,B_4,B_5),2)=B_5),"Yes","No"))))))))))))))))))) -> 
D16: Total Cost (AC+K) | E16: =IF(OR(B_1="",C_2=""),"",IF(J_1="No",0,IF(alpha=1,IF(PA_1="Yes",C_1+k,k),IF(AND(J_1="Yes",J_2="No",J_3="No",OR(J_4="No",J_4=""),OR(J_5="No",J_5="")),C_1+k,IF(AND(PA_1="Yes",SA_1="No"),alpha*C_1+k,IF(AND(PA_1="No",SA_1="Yes"),(1-alpha)*C_1+k,k)))))) ->  | F16: =IF(B_2="","",IF(J_2="No",0,IF(alpha=1,IF(PA_2="Yes",C_2+k,k),IF(AND(J_1="No",J_2="Yes",J_3="No",OR(J_4="No",J_4=""),OR(J_5="No",J_5="")),C_2+k,IF(AND(PA_2="Yes",SA_2="No"),alpha*C_2+k,IF(AND(PA_2="No",SA_2="Yes"),(1-alpha)*C_2+k,IF(AND(PA_2="No",SA_2="No"),k))))))) ->  | G16: =IF(B_3="","",IF(J_3="No",0,IF(alpha=1,IF(PA_3="Yes",C_3+k,k),IF(AND(J_1="No",J_2="No",J_3="Yes",OR(J_4="No",J_4=""),OR(J_5="No",J_5="")),C_3+k,IF(AND(PA_3="Yes",SA_3="No"),alpha*C_3+k,IF(AND(PA_3="No",SA_3="Yes"),(1-alpha)*C_3+k,IF(AND(PA_3="No",SA_3="No"),k))))))) ->  | H16: =IF(B_4="","",IF(J_4="No",0,IF(alpha=1,IF(PA_4="Yes",C_4+k,k),IF(AND(J_1="No",J_2="No",J_3="No",J_4="Yes",OR(J_5="No",J_5="")),C_4+k,IF(AND(PA_4="Yes",SA_4="No"),alpha*C_4+k,IF(AND(PA_4="No",SA_4="Yes"),(1-alpha)*C_4+k,IF(AND(PA_4="No",SA_4="No"),k))))))) ->  | I16: =IF(B_5="","",IF(J_5="No",0,IF(alpha=1,IF(PA_5="Yes",C_5+k,k),IF(AND(J_1="No",J_2="No",J_3="No",OR(J_4="No",J_4=""),J_5="Yes"),C_5+k,IF(AND(PA_5="Yes",SA_5="No"),alpha*C_5+k,IF(AND(PA_5="No",SA_5="Yes"),(1-alpha)*C_5+k,IF(AND(PA_5="No",SA_5="No"),k))))))) -> 
A17: Next Period: | B17: 1 | D17: Revenue (Ab) | E17: =IF(T_1="","",IF(B2=FALSE,E6,IF(E6=0,0,IF(E11=E7,100,INDEX(E7:I7,MATCH(E11+0.000001,E7:I7,-1)))*IF(AND(PA_1="Yes",OR(alpha=1,SA_1="Yes")),1,IF(AND(PA_1="Yes",SA_1="No"),alpha,IF(AND(PA_1="No",SA_1="Yes"),1-alpha,0)))))) ->  | F17: =IF(T_2="","",IF(B2=FALSE,F6,IF(F6=0,0,IF(F11=E7,100,INDEX(E7:I7,MATCH(F11+0.000001,E7:I7,-1)))*IF(AND(PA_2="Yes",OR(alpha=1,SA_2="Yes")),1,IF(AND(PA_2="Yes",SA_2="No"),alpha,IF(AND(PA_2="No",SA_2="Yes"),1-alpha,0)))))) ->  | G17: =IF(T_3="","",IF(B2=FALSE,G6,IF(G6=0,0,IF(G11=E7,100,INDEX(E7:I7,MATCH(G11+0.000001,E7:I7,-1)))*IF(AND(PA_3="Yes",OR(alpha=1,SA_3="Yes")),1,IF(AND(PA_3="Yes",SA_3="No"),alpha,IF(AND(PA_3="No",SA_3="Yes"),1-alpha,0)))))) ->  | H17: =IF(N=3,"",IF(T_4="","",IF(B2=FALSE,H6,IF(H6=0,0,IF(H11=E7,100,INDEX(E7:I7,MATCH(H11+0.000001,E7:I7,-1)))*IF(AND(PA_4="Yes",OR(alpha=1,SA_4="Yes")),1,IF(AND(PA_4="Yes",SA_4="No"),alpha,IF(AND(PA_4="No",SA_4="Yes"),1-alpha,0))))))) ->  | I17: =IF(N=3,"",IF(T_5="","",IF(B2=FALSE,I6,IF(I6=0,0,IF(I11=E7,100,INDEX(E7:I7,MATCH(I11+0.000001,E7:I7,-1)))*IF(AND(PA_5="Yes",OR(alpha=1,SA_5="Yes")),1,IF(AND(PA_5="Yes",SA_5="No"),alpha,IF(AND(PA_5="No",SA_5="Yes"),1-alpha,0))))))) -> 
D18: Profit (Ab-AC-K) | E18: =IF(OR(B_1="",C_2=""),"",R_1-T_1) ->  | F18: =IF(B_2="","",R_2-T_2) ->  | G18: =IF(B_3="","",R_3-T_3) ->  | H18: =IF(B_4="","",R_4-T_4) ->  | I18: =IF(B_5="","",R_5-T_5) -> 
A19: Robot would have bid: | B19: Exterior Parts | C19: Bid | D19: Won? | E19: Profit | F19: Profit | G19: Profit | H19: Profit | I19: Profit
B20: Antenna
B21: Auxiliary Light
B22: Battery Heaters
B23: Bug Deflectors
B24: Grill Guards
B25: Car Covers
B26: Cargo Mat
B27: Grab Bar
B28: Door Edge Guard
B29: Door Sill Protector
B30: Exterior Lighting
B31: Door handle
B32: Headlight Cover
B33: Headlight Guard
B34: License Frames
B35: Lift Support
B36: Mud Guards
B37: Step Bar
B38: Roll Bars
B39: Running Board
B40: Average

Sheet 2_Players
A1: The BucknellAuto Game -- | B1: Reverse Auctions for Automotive Exterior Parts | F1: 1 | G1: 1
B2: FALSE | E2: 1
A3: Auction parameters | B3: Input | C3: Repeat steps 1-5 | J3: (Robot picture from Microsoft Excel 2010 clipart)
A4: Invited suppliers (N): | B4: 3 | C4: for 20 auctions.
A5: Administrative cost (K): | B5: 10 | C5: 0.8
A6: Risk attitude (β): | B6: 0.6 | E6: =IF(B_2="","",B_1*IF(AND(PA_1="Yes",OR(alpha=1,SA_1="Yes")),1,IF(AND(PA_1="Yes",SA_1="No"),alpha,IF(AND(PA_1="No",SA_1="Yes"),1-alpha,0)))) ->  | F6: =IF(B_2="","",B_2*IF(AND(PA_2="Yes",OR(alpha=1,SA_2="Yes")),1,IF(AND(PA_2="Yes",SA_2="No"),alpha,IF(AND(PA_2="No",SA_2="Yes"),1-alpha,0)))) ->  | G6: =IF(B_3="","",B_3*IF(AND(PA_3="Yes",OR(alpha=1,SA_3="Yes")),1,IF(AND(PA_3="Yes",SA_3="No"),alpha,IF(AND(PA_3="No",SA_3="Yes"),1-alpha,0)))) ->  | H6: =IF(B_4="","",IF(N=3,"--",B_4*IF(AND(PA_4="Yes",OR(alpha=1,SA_4="Yes")),1,IF(AND(PA_4="Yes",SA_4="No"),alpha,IF(AND(PA_4="No",SA_4="Yes"),1-alpha,0))))) ->  | I6: =IF(B_5="","",IF(N=3,"--",B_5*IF(AND(PA_5="Yes",OR(alpha=1,SA_5="Yes")),1,IF(AND(PA_5="Yes",SA_5="No"),alpha,IF(AND(PA_5="No",SA_5="Yes"),1-alpha,0))))) -> 
A7: Award portion (α): | B7: 1 | E7: =LARGE($E$11:$I$11,1) -> 0 | F7: =LARGE($E$11:$I$11,2) -> 0 | G7: =LARGE($E$11:$I$11,3) ->  | H7: =LARGE($E$11:$I$11,4) ->  | I7: =LARGE($E$11:$I$11,5) -> 
A8: Seed (s): | B8: 1
A9: Equilib. Cap (ca*) | B9: 0.4121991428 | G9: BowdoinParts | H9: CarletonParts | I9: DavidsonParts
A10: Solver constraint (Eqn 3) | B10: =(1-ca)^(N-1)*(1-ca)^beta+(N-1)*ca*(1-ca)^(N-2)*((1-alpha)*(1-ca))^beta-(k*0.01)^beta -> -8.332928297e-07 | D10: Total Mfg. Cost (C)
D11: Total Bid (b) | E11: =B_1 -> 0 | F11: =B_2 -> 0 | G11: =IF(C_3="","",IF(C_3<=ca*100,C_3+G12,0)) ->  | H11: =IF(C_4="","",IF(N=3,"--",IF(C_4<=ca*100,C_4+H12,0))) ->  | I11: =IF(C_5="","",IF(N=3,"--",IF(C_5<=ca*100,C_5+I12,0))) -> 
G12: =100*('Integral chart'!F10005/(((1-alpha^beta)*(1-ca)^(N-1)+alpha^beta*(1-C_3*0.01)^(N-1)+(N-1)*(1-alpha)^beta*C_3*0.01*(1-C_3*0.01)^(N-2))^(1/beta))+(((1-alpha^beta)*(1-ca)^(N-1)+alpha^beta*(1-ca)^(N-1)+(N-1)*(1-alpha)^beta*ca*(1-ca)^(N-2))^(1/beta)*(1-ca))/(((1-alpha^beta)*(1-ca)^(N-1)+alpha^beta*(1-C_3*0.01)^(N-1)+(N-1)*(1-alpha)^beta*C_3*0.01*(1-C_3*0.01)^(N-2))^(1/beta))) -> 30.75920469 | H12: =100*('Integral chart'!G10005/(((1-alpha^beta)*(1-ca)^(N-1)+alpha^beta*(1-C_4*0.01)^(N-1)+(N-1)*(1-alpha)^beta*C_4*0.01*(1-C_4*0.01)^(N-2))^(1/beta))+(((1-alpha^beta)*(1-ca)^(N-1)+alpha^beta*(1-ca)^(N-1)+(N-1)*(1-alpha)^beta*ca*(1-ca)^(N-2))^(1/beta)*(1-ca))/(((1-alpha^beta)*(1-ca)^(N-1)+alpha^beta*(1-C_4*0.01)^(N-1)+(N-1)*(1-alpha)^beta*C_4*0.01*(1-C_4*0.01)^(N-2))^(1/beta))) -> 30.75920469 | I12: =100*('Integral chart'!H10005/(((1-alpha^beta)*(1-ca)^(N-1)+alpha^beta*(1-C_5*0.01)^(N-1)+(N-1)*(1-alpha)^beta*C_5*0.01*(1-C_5*0.01)^(N-2))^(1/beta))+(((1-alpha^beta)*(1-ca)^(N-1)+alpha^beta*(1-ca)^(N-1)+(N-1)*(1-alpha)^beta*ca*(1-ca)^(N-2))^(1/beta)*(1-ca))/(((1-alpha^beta)*(1-ca)^(N-1)+alpha^beta*(1-C_5*0.01)^(N-1)+(N-1)*(1-alpha)^beta*C_5*0.01*(1-C_5*0.01)^(N-2))^(1/beta))) -> 30.75920469
D13: Participating? | E13: =IF(B_1="","", IF(B_1>0,"Yes","No")) ->  | F13: =IF(B_2="","", IF(B_2>0,"Yes","No")) ->  | G13: =IF(B_3="","", IF(B_3>0,"Yes","No")) ->  | H13: =IF(B_4="","",IF(B_4>0,"Yes","No")) ->  | I13: =IF(B_5="","",IF(B_5>0,"Yes","No")) -> 
D14: 1st Award? (A=α) | E14: =IF(B_3="","",IF(N=3, IF(J_1="No","No", IF(AND(J_1="Yes",J_2="No",J_3="No"),"Yes", IF(AND(J_1="Yes",J_2="Yes",J_3="No",MIN(B_1,B_2)=B_1),"Yes", IF(AND(J_1="Yes",J_2="No",J_3="Yes",MIN(B_1,B_3)=B_1),"Yes", IF(AND(J_1="Yes",J_2="Yes",J_3="Yes",MIN(B_1,B_2,B_3)=B_1),"Yes","No"))))), IF(J_1="No","No",IF(AND(J_1="Yes",J_2="No",J_3="No",J_4="No",J_5="No"),"Yes", IF(AND(J_1="Yes",J_2="Yes",J_3="No",J_4="No",J_5="No",MIN(B_1,B_2)=B_1),"Yes", IF(AND(J_1="Yes",J_2="No",J_3="Yes",J_4="No",J_5="No",MIN(B_1,B_3)=B_1),"Yes", IF(AND(J_1="Yes",J_2="No",J_3="No",J_4="Yes",J_5="No",MIN(B_1,B_4)=B_1),"Yes", IF(AND(J_1="Yes",J_2="No",J_3="No",J_4="No",J_5="Yes",MIN(B_1,B_5)=B_1),"Yes", IF(AND(J_1="Yes",J_2="Yes",J_3="Yes",J_4="No",J_5="No",MIN(B_1,B_2,B_3)=B_1),"Yes", IF(AND(J_1="Yes",J_2="Yes",J_3="No",J_4="Yes",J_5="No",MIN(B_1,B_2,B_4)=B_1),"Yes", IF(AND(J_1="Yes",J_2="Yes",J_3="No",J_4="No",J_5="Yes",MIN(B_1,B_2,B_5)=B_1),"Yes", IF(AND(J_1="Yes",J_2="No",J_3="Yes",J_4="Yes",J_5="No",MIN(B_1,B_3,B_4)=B_1),"Yes", IF(AND(J_1="Yes",J_2="No",J_3="Yes",J_4="No",J_5="Yes",MIN(B_1,B_3,B_5)=B_1),"Yes", IF(AND(J_1="Yes",J_2="No",J_3="No",J_4="Yes",J_5="Yes",MIN(B_1,B_4,B_5)=B_1),"Yes", IF(AND(J_1="Yes",J_2="Yes",J_3="Yes",J_4="Yes",J_5="No",MIN(B_1,B_2,B_3,B_4)=B_1),"Yes", IF(AND(J_1="Yes",J_2="Yes",J_3="Yes",J_4="No",J_5="Yes",MIN(B_1,B_2,B_3, B_5)=B_1),"Yes", IF(AND(J_1="Yes",J_2="Yes",J_3="No",J_4="Yes",J_5="Yes",MIN(B_1,B_2,B_4, B_5)=B_1),"Yes", IF(AND(J_1="Yes",J_2="No",J_3="Yes",J_4="Yes",J_5="Yes",MIN(B_1,B_3,B_4, B_5)=B_1),"Yes", IF(AND(J_1="Yes",J_2="Yes",J_3="Yes",J_4="Yes",J_5="Yes",MIN(B_1,B_2,B_3,B_4,B_5)=B_1),"Yes","No"))))))))))))))))))) ->  | F14: =IF(B_3="","",IF(N=3, IF(J_2="No","No", IF(AND(J_2="Yes",J_1="No",J_3="No"),"Yes", IF(AND(J_2="Yes",J_1="Yes",J_3="No",MIN(B_2,B_1)=B_2),"Yes", IF(AND(J_2="Yes",J_1="No",J_3="Yes",MIN(B_2,B_3)=B_2),"Yes", IF(AND(J_2="Yes",J_1="Yes",J_3="Yes",MIN(B_2,B_1,B_3)=B_2),"Yes","No"))))), IF(J_2="No","No", IF(AND(J_2="Yes",J_1="No",J_3="No",J_4="No",J_5="No"),"Yes", IF(AND(J_2="Yes",J_1="Yes",J_3="No",J_4="No",J_5="No",MIN(B_2,B_1)=B_2),"Yes", IF(AND(J_2="Yes",J_1="No",J_3="Yes",J_4="No",J_5="No",MIN(B_2,B_3)=B_2),"Yes", IF(AND(J_2="Yes",J_1="No",J_3="No",J_4="Yes",J_5="No",MIN(B_2,B_4)=B_2),"Yes", IF(AND(J_2="Yes",J_1="No",J_3="No",J_4="No",J_5="Yes",MIN(B_2,B_5)=B_2),"Yes", IF(AND(J_2="Yes",J_1="Yes",J_3="Yes",J_4="No",J_5="No",MIN(B_2,B_1,B_3)=B_2),"Yes", IF(AND(J_2="Yes",J_1="Yes",J_3="No",J_4="Yes",J_5="No",MIN(B_2,B_1,B_4)=B_2),"Yes", IF(AND(J_2="Yes",J_1="Yes",J_3="No",J_4="No",J_5="Yes",MIN(B_2,B_1,B_5)=B_2),"Yes", IF(AND(J_2="Yes",J_1="No",J_3="Yes",J_4="Yes",J_5="No",MIN(B_2,B_3,B_4)=B_2),"Yes", IF(AND(J_2="Yes",J_1="No",J_3="Yes",J_4="No",J_5="Yes",MIN(B_2,B_3,B_5)=B_2),"Yes", IF(AND(J_2="Yes",J_1="No",J_3="No",J_4="Yes",J_5="Yes",MIN(B_2,B_4,B_5)=B_2),"Yes", IF(AND(J_2="Yes",J_1="Yes",J_3="Yes",J_4="Yes",J_5="No",MIN(B_2,B_1,B_3,B_4)=B_2),"Yes", IF(AND(J_2="Yes",J_1="Yes",J_3="Yes",J_4="No",J_5="Yes",MIN(B_2,B_1,B_3,B_5)=B_2),"Yes", IF(AND(J_2="Yes",J_1="Yes",J_3="No",J_4="Yes",J_5="Yes",MIN(B_2,B_1,B_4,B_5)=B_2),"Yes", IF(AND(J_2="Yes",J_1="No",J_3="Yes",J_4="Yes",J_5="Yes",MIN(B_2,B_3,B_4,B_5)=B_2),"Yes", IF(AND(J_2="Yes",J_1="Yes",J_3="Yes",J_4="Yes",J_5="Yes",MIN(B_2,B_1,B_3,B_4,B_5)=B_2),"Yes","No"))))))))))))))))))) ->  | G14: =IF(B_3="","", IF(N=3,IF(J_3="No","No", IF(AND(J_3="Yes",J_1="No",J_2="No"),"Yes", IF(AND(J_3="Yes",J_1="Yes",J_2="No",MIN(B_3,B_1)=B_3),"Yes", IF(AND(J_3="Yes",J_1="No",J_2="Yes",MIN(B_3,B_2)=B_3),"Yes", IF(AND(J_3="Yes",J_1="Yes",J_2="Yes",MIN(B_3,B_1,B_2)=B_3),"Yes","No"))))), IF(J_3="No","No", IF(AND(J_3="Yes",J_1="No",J_2="No",J_4="No",J_5="No"),"Yes", IF(AND(J_3="Yes",J_1="Yes",J_2="No",J_4="No",J_5="No",MIN(B_3,B_1)=B_3),"Yes", IF(AND(J_3="Yes",J_1="No",J_2="Yes",J_4="No",J_5="No",MIN(B_3,B_2)=B_3),"Yes", IF(AND(J_3="Yes",J_1="No",J_2="No",J_4="Yes",J_5="No",MIN(B_3,B_4)=B_3),"Yes", IF(AND(J_3="Yes",J_1="No",J_2="No",J_4="No",J_5="Yes",MIN(B_3,B_5)=B_3),"Yes", IF(AND(J_3="Yes",J_1="Yes",J_2="Yes",J_4="No",J_5="No",MIN(B_3,B_1,B_2)=B_3),"Yes", IF(AND(J_3="Yes",J_1="Yes",J_2="No",J_4="Yes",J_5="No",MIN(B_3,B_1,B_4)=B_3),"Yes", IF(AND(J_3="Yes",J_1="Yes",J_2="No",J_4="No",J_5="Yes",MIN(B_3,B_1,B_5)=B_3),"Yes", IF(AND(J_3="Yes",J_1="No",J_2="Yes",J_4="Yes",J_5="No",MIN(B_3,B_2,B_4)=B_3),"Yes", IF(AND(J_3="Yes",J_1="No",J_2="Yes",J_4="No",J_5="Yes",MIN(J_3,J_2,J_5)=B_3),"Yes", IF(AND(J_3="Yes",J_1="No",J_2="No",J_4="Yes",J_5="Yes",MIN(B_3,B_4,B_5)=B_3),"Yes", IF(AND(J_3="Yes",J_1="Yes",J_2="Yes",J_4="Yes",J_5="No",MIN(B_3,B_1,B_2,B_4)=B_3),"Yes", IF(AND(J_3="Yes",J_1="Yes",J_2="Yes",J_4="No",J_5="Yes",MIN(B_3,B_1,B_2,B_5)=B_3),"Yes", IF(AND(J_3="Yes",J_1="Yes",J_2="No",J_4="Yes",J_5="Yes",MIN(B_3,B_1,B_4,B_5)=B_3),"Yes", IF(AND(J_3="Yes",J_1="No",J_2="Yes",J_4="Yes",J_5="Yes",MIN(B_3,B_2,B_4,B_5)=B_3),"Yes", IF(AND(J_3="Yes",J_1="Yes",J_2="Yes",J_4="Yes",J_5="Yes",MIN(B_3,B_1,B_2,B_4,B_5)=B_3),"Yes","No"))))))))))))))))))) ->  | H14: =IF(B_4="","", IF(J_4="No","No", IF(AND(J_4="Yes",J_1="No",J_2="No",J_3="No",J_5="No"),"Yes", IF(AND(J_4="Yes",J_1="Yes",J_2="No",J_3="No",J_5="No",MIN(B_4,B_1)=B_4),"Yes", IF(AND(J_4="Yes",J_1="No",J_2="Yes",J_3="No",J_5="No",MIN(B_4,B_2)=B_4),"Yes", IF(AND(J_4="Yes",J_1="No",J_2="No",J_3="Yes",J_5="No",MIN(B_4,B_3)=B_4),"Yes", IF(AND(J_4="Yes",J_1="No",J_2="No",J_3="No",J_5="Yes",MIN(B_4,B_5)=B_4),"Yes", IF(AND(J_4="Yes",J_1="Yes",J_2="Yes",J_3="No",J_5="No",MIN(B_4,B_1,B_2)=B_4),"Yes", IF(AND(J_4="Yes",J_1="Yes",J_2="No",J_3="Yes",J_5="No",MIN(B_4,B_1,B_3)=B_4),"Yes", IF(AND(J_4="Yes",J_1="Yes",J_2="No",J_3="No",J_5="Yes",MIN(B_4,B_1,B_5)=B_4),"Yes", IF(AND(J_4="Yes",J_1="No",J_2="Yes",J_3="Yes",J_5="No",MIN(B_4,B_2,B_3)=B_4),"Yes", IF(AND(J_4="Yes",J_1="No",J_2="Yes",J_3="No",J_5="Yes",MIN(B_4,B_2,B_5)=B_4),"Yes", IF(AND(J_4="Yes",J_1="No",J_2="No",J_3="Yes",J_5="Yes",MIN(B_4,B_3,B_5)=B_4),"Yes", IF(AND(J_4="Yes",J_1="Yes",J_2="Yes",J_3="Yes",J_5="No",MIN(B_4,B_1,B_2,B_3)=B_4),"Yes", IF(AND(J_4="Yes",J_1="Yes",J_2="Yes",J_3="No",J_5="Yes",MIN(B_4,B_1,B_2,B_5)=B_4),"Yes", IF(AND(J_4="Yes",J_1="Yes",J_2="No",J_3="Yes",J_5="Yes",MIN(B_4,B_1,B_3,B_5)=B_4),"Yes", IF(AND(J_4="Yes",J_1="No",J_2="Yes",J_3="Yes",J_5="Yes",MIN(B_4,B_2,B_3,B_5)=B_4),"Yes", IF(AND(J_4="Yes",J_1="Yes",J_2="Yes",J_3="Yes",J_5="Yes",MIN(B_4,B_1,B_2,B_3,B_5)=B_4),"Yes","No")))))))))))))))))) ->  | I14: =IF(B_5="","",IF(J_5="No","No", IF(AND(J_5="Yes",J_1="No",J_2="No",J_3="No",J_4="No"),"Yes", IF(AND(J_5="Yes",J_1="Yes",J_2="No",J_3="No",J_4="No",MIN(B_5,B_1)=B_5),"Yes", IF(AND(J_5="Yes",J_1="No",J_2="Yes",J_3="No",J_4="No",MIN(B_5,B_2)=B_5),"Yes", IF(AND(J_5="Yes",J_1="No",J_2="No",J_3="Yes",J_4="No",MIN(B_5,B_3)=B_5),"Yes", IF(AND(J_5="Yes",J_1="No",J_2="No",J_3="No",J_4="Yes",MIN(B_5,B_4)=B_5),"Yes", IF(AND(J_5="Yes",J_1="Yes",J_2="Yes",J_3="No",J_4="No",MIN(B_5,B_1,B_2)=B_5),"Yes", IF(AND(J_5="Yes",J_1="Yes",J_2="No",J_3="Yes",J_4="No",MIN(B_5,B_1,B_3)=B_5),"Yes", IF(AND(J_5="Yes",J_1="Yes",J_2="No",J_3="No",J_4="Yes",MIN(B_5,B_1,B_4)=B_5),"Yes", IF(AND(J_5="Yes",J_1="No",J_2="Yes",J_3="Yes",J_4="No",MIN(B_5,B_2,B_3)=B_5),"Yes", IF(AND(J_5="Yes",J_1="No",J_2="Yes",J_3="No",J_4="Yes",MIN(B_5,B_2,B_4)=B_5),"Yes", IF(AND(J_5="Yes",J_1="No",J_2="No",J_3="Yes",J_4="Yes",MIN(B_5,B_3,B_4)=B_5),"Yes", IF(AND(J_5="Yes",J_1="Yes",J_2="Yes",J_3="Yes",J_4="No",MIN(B_5,B_1,B_2,B_3)=B_5),"Yes", IF(AND(J_5="Yes",J_1="Yes",J_2="Yes",J_3="No",J_4="Yes",MIN(B_5,B_1,B_2,B_4)=B_5),"Yes", IF(AND(J_5="Yes",J_1="Yes",J_2="No",J_3="Yes",J_4="Yes",MIN(B_5,B_1,B_3,B_4)=B_5),"Yes", IF(AND(J_5="Yes",J_1="No",J_2="Yes",J_3="Yes",J_4="Yes",MIN(B_5,B_2,B_3,B_4)=B_5),"Yes", IF(AND(J_5="Yes",J_1="Yes",J_2="Yes",J_3="Yes",J_4="Yes",MIN(B_5,B_1,B_2,B_3,B_4)=B_5),"Yes","No")))))))))))))))))) -> 
D15: 2nd Award? (A=1-α) | E15: =IF(alpha=1,"",IF(B_3="","", IF(N=3,IF(J_1="No","No", IF(AND(J_1="Yes",J_2="No",J_3="No"),"Yes", IF(AND(J_1="Yes",J_2="Yes",J_3="No",MAX(B_1,B_2,B_3)=B_1),"Yes", IF(AND(J_1="Yes",J_2="No",J_3="Yes",MAX(B_1,B_2,B_3)=B_1),"Yes", IF(AND(J_1="Yes",J_2="Yes",J_3="Yes",SMALL((B_1,B_2,B_3),2)=B_1),"Yes","No"))))), IF(J_1="No","No",IF(AND(J_1="Yes",J_2="No",J_3="No",J_4="No",J_5="No"),"Yes", IF(AND(J_1="Yes",J_2="Yes",J_3="No",J_4="No",J_5="No",MAX(B_1,B_2,B_3,B_4,B_5)=B_1),"Yes", IF(AND(J_1="Yes",J_2="No",J_3="Yes",J_4="No",J_5="No",MAX(B_1,B_2,B_3,B_4,B_5)=B_1),"Yes", IF(AND(J_1="Yes",J_2="No",J_3="No",J_4="Yes",J_5="No",MAX(B_1,B_2,B_3,B_4,B_5)=B_1),"Yes", IF(AND(J_1="Yes",J_2="No",J_3="No",J_4="No",J_5="Yes",MAX(B_1,B_2,B_3,B_4,B_5)=B_1),"Yes", IF(AND(J_1="Yes",J_2="Yes",J_3="Yes",J_4="No",J_5="No",MIN(B_1,B_2,B_3)<B_1,MAX(B_1,B_2,B_3)>B_1),"Yes", IF(AND(J_1="Yes",J_2="Yes",J_3="No",J_4="Yes",J_5="No",MIN(B_1,B_2,B_4)<B_1,MAX(B_1,B_2,B_4)>B_1),"Yes", IF(AND(J_1="Yes",J_2="Yes",J_3="No",J_4="No",J_5="Yes",MIN(B_1,B_2,B_5)<B_1,MAX(B_1,B_2,B_5)>B_1),"Yes", IF(AND(J_1="Yes",J_2="No",J_3="Yes",J_4="Yes",J_5="No",MIN(B_1,B_3,B_4)<B_1,MAX(B_1,B_3,B_4)>B_1),"Yes", IF(AND(J_1="Yes",J_2="No",J_3="Yes",J_4="No",J_5="Yes",MIN(B_1,B_3,B_5)<B_1,MAX(B_1,B_3,B_5)>B_1),"Yes", IF(AND(J_1="Yes",J_2="No",J_3="No",J_4="Yes",J_5="Yes",MIN(B_1,B_4,B_5)<B_1,MAX(B_1,B_4,B_5)>B_1),"Yes", IF(AND(J_1="Yes",J_2="Yes",J_3="Yes",J_4="Yes",J_5="No",SMALL((B_1,B_2,B_3,B_4),2)=B_1),"Yes", IF(AND(J_1="Yes",J_2="Yes",J_3="Yes",J_4="No",J_5="Yes",SMALL((B_1,B_2,B_3,B_5),2)=B_1),"Yes", IF(AND(J_1="Yes",J_2="Yes",J_3="No",J_4="Yes",J_5="Yes",SMALL((B_1,B_2,B_4,B_5),2)=B_1),"Yes", IF(AND(J_1="Yes",J_2="No",J_3="Yes",J_4="Yes",J_5="Yes",SMALL((B_1,B_3,B_4,B_5),2)=B_1),"Yes", IF(AND(J_1="Yes",J_2="Yes",J_3="Yes",J_4="Yes",J_5="Yes",SMALL((B_1,B_2,B_3,B_4,B_5),2)=B_1),"Yes","No")))))))))))))))))))) ->  | F15: =IF(alpha=1,"",IF(B_3="","",IF(N=3,IF(J_2="No","No", IF(AND(J_2="Yes",J_1="No",J_3="No"),"Yes", IF(AND(J_2="Yes",J_1="Yes",J_3="No",MAX(B_1,B_2,B_3)=B_2),"Yes", IF(AND(J_2="Yes",J_1="No",J_3="Yes",MAX(B_1,B_2,B_3)=B_2),"Yes", IF(AND(J_2="Yes",J_1="Yes",J_3="Yes",SMALL((B_1,B_2,B_3),2)=B_2),"Yes","No"))))), IF(J_2="No","No",IF(AND(J_2="Yes",J_1="No",J_3="No",J_4="No",J_5="No"),"Yes", IF(AND(J_2="Yes",J_1="Yes",J_3="No",J_4="No",J_5="No",MAX(B_1,B_2,B_3,B_4,B_5)=B_2),"Yes", IF(AND(J_2="Yes",J_1="No",J_3="Yes",J_4="No",J_5="No",MAX(B_1,B_2,B_3,B_4,B_5)=B_2),"Yes", IF(AND(J_2="Yes",J_1="No",J_3="No",J_4="Yes",J_5="No",MAX(B_1,B_2,B_3,B_4,B_5)=B_2),"Yes", IF(AND(J_2="Yes",J_1="No",J_3="No",J_4="No",J_5="Yes",MAX(B_1,B_2,B_3,B_4,B_5)=B_2),"Yes", IF(AND(J_2="Yes",J_1="Yes",J_3="Yes",J_4="No",J_5="No",MIN(B_2,B_1,B_3)<B_2,MAX(B_2,B_1,B_3)>B_2),"Yes", IF(AND(J_2="Yes",J_1="Yes",J_3="No",J_4="Yes",J_5="No",MIN(B_2,B_1,B_4)<B_2,MAX(B_2,B_1,B_4)>B_2),"Yes", IF(AND(J_2="Yes",J_1="Yes",J_3="No",J_4="No",J_5="Yes",MIN(B_2,B_1,B_5)<B_2,MAX(B_2,B_1,B_5)>B_2),"Yes", IF(AND(J_2="Yes",J_1="No",J_3="Yes",J_4="Yes",J_5="No",MIN(B_2,B_3,B_4)<B_2,MAX(B_2,B_3,B_4)>B_2),"Yes", IF(AND(J_2="Yes",J_1="No",J_3="Yes",J_4="No",J_5="Yes",MIN(B_2,B_3,B_5)<B_2,MAX(B_2,B_3,B_5)>B_2),"Yes", IF(AND(J_2="Yes",J_1="No",J_3="No",J_4="Yes",J_5="Yes",MIN(B_2,B_4,B_5)<B_2,MAX(B_2,B_4,B_5)>B_2),"Yes", IF(AND(J_2="Yes",J_1="Yes",J_3="Yes",J_4="Yes",J_5="No",SMALL((B_1,B_2,B_3,B_4),2)=B_2),"Yes", IF(AND(J_2="Yes",J_1="Yes",J_3="Yes",J_4="No",J_5="Yes",SMALL((B_1,B_2,B_3,B_5),2)=B_2),"Yes", IF(AND(J_2="Yes",J_1="Yes",J_3="No",J_4="Yes",J_5="Yes",SMALL((B_1,B_2,B_4,B_5),2)=B_2),"Yes", IF(AND(J_2="Yes",J_1="No",J_3="Yes",J_4="Yes",J_5="Yes",SMALL((B_2,B_3,B_4,B_5),2)=B_2),"Yes", IF(AND(J_2="Yes",J_1="Yes",J_3="Yes",J_4="Yes",J_5="Yes",SMALL((B_1,B_2,B_3,B_4,B_5),2)=B_2),"Yes","No")))))))))))))))))))) ->  | G15: =IF(alpha=1,"",IF(B_3="","",IF(N=3, IF(J_3="No","No",IF(AND(J_3="Yes",J_1="No",J_2="No"),"Yes", IF(AND(J_3="Yes",J_1="Yes",J_2="No",MAX(B_1,B_2,B_3)=B_3),"Yes", IF(AND(J_3="Yes",J_1="No",J_2="Yes",MAX(B_1,B_2,B_3)=B_3),"Yes", IF(AND(J_3="Yes",J_1="Yes",J_2="Yes",SMALL((B_1,B_2,B_3),2)=B_3),"Yes","No"))))), IF(J_3="No","No",IF(AND(J_3="Yes",J_1="No",J_2="No",J_4="No",J_5="No"),"Yes", IF(AND(J_3="Yes",J_1="Yes",J_2="No",J_4="No",J_5="No",MAX(B_1,B_2,B_3,B_4,B_5)=B_3),"Yes", IF(AND(J_3="Yes",J_1="No",J_2="Yes",J_4="No",J_5="No",MAX(B_1,B_2,B_3,B_4,B_5)=B_3),"Yes", IF(AND(J_3="Yes",J_1="No",J_2="No",J_4="Yes",J_5="No",MAX(B_1,B_2,B_3,B_4,B_5)=B_3),"Yes", IF(AND(J_3="Yes",J_1="No",J_2="No",J_4="No",J_5="Yes",MAX(B_1,B_2,B_3,B_4,B_5)=B_3),"Yes", IF(AND(J_3="Yes",J_1="Yes",J_2="Yes",J_4="No",J_5="No",MIN(B_3,B_1,B_2)<B_3,MAX(B_3,B_1,B_2)>B_3),"Yes", IF(AND(J_3="Yes",J_1="Yes",J_2="No",J_4="Yes",J_5="No",MIN(B_3,B_1,B_4)<B_3,MAX(B_3,B_1,B_4)>B_3),"Yes", IF(AND(J_3="Yes",J_1="Yes",J_2="No",J_4="No",J_5="Yes",MIN(B_3,B_1,B_5)<B_3,MAX(B_3,B_1,B_5)>B_3),"Yes", IF(AND(J_3="Yes",J_1="No",J_2="Yes",J_4="Yes",J_5="No",MIN(B_3,B_2,B_4)<B_3,MAX(B_3,B_2,B_4)>B_3),"Yes", IF(AND(J_3="Yes",J_1="No",J_2="Yes",J_4="No",J_5="Yes",MIN(B_3,B_2,B_5)<B_3,MAX(B_3,B_2,B_5)>B_3),"Yes", IF(AND(J_3="Yes",J_1="No",J_2="No",J_4="Yes",J_5="Yes",MIN(B_3,B_4,B_5)<B_3,MAX(B_3,B_4,B_5)>B_3),"Yes", IF(AND(J_3="Yes",J_1="Yes",J_2="Yes",J_4="Yes",J_5="No",SMALL((B_1,B_2,B_3,B_4),2)=B_3),"Yes", IF(AND(J_3="Yes",J_1="Yes",J_2="Yes",J_4="No",J_5="Yes",SMALL((B_1,B_2,B_3,B_5),2)=B_3),"Yes", IF(AND(J_3="Yes",J_1="Yes",J_2="No",J_4="Yes",J_5="Yes",SMALL((B_1,B_3,B_4,B_5),2)=B_3),"Yes", IF(AND(J_3="Yes",J_1="No",J_2="Yes",J_4="Yes",J_5="Yes",SMALL((B_2,B_3,B_4,B_5),2)=B_3),"Yes", IF(AND(J_3="Yes",J_1="Yes",J_2="Yes",J_4="Yes",J_5="Yes",SMALL((B_1,B_2,B_3,B_4,B_5),2)=B_3),"Yes","No")))))))))))))))))))) ->  | H15: =IF(alpha=1,"",IF(B_4="","",IF(J_4="No","No", IF(AND(J_4="Yes",J_1="No",J_2="No",J_3="No",J_5="No"),"Yes", IF(AND(J_4="Yes",J_1="Yes",J_2="No",J_3="No",J_5="No",MAX(B_1,B_2,B_3,B_4,B_5)=B_4),"Yes", IF(AND(J_4="Yes",J_1="No",J_2="Yes",J_3="No",J_5="No",MAX(B_1,B_2,B_3,B_4,B_5)=B_4),"Yes", IF(AND(J_4="Yes",J_1="No",J_2="No",J_3="Yes",J_5="No",MAX(B_1,B_2,B_3,B_4,B_5)=B_4),"Yes", IF(AND(J_4="Yes",J_1="No",J_2="No",J_3="No",J_5="Yes",MAX(B_1,B_2,B_3,B_4,B_5)=B_4),"Yes", IF(AND(J_4="Yes",J_1="Yes",J_2="Yes",J_3="No",J_5="No",MIN(B_4,B_2,B_2)<B_4,MAX(B_4,B_1,B_2)>B_4),"Yes", IF(AND(J_4="Yes",J_1="Yes",J_2="No",J_3="Yes",J_5="No",MIN(B_4,B_1,B_3)<B_4,MAX(B_4,B_1,B_3)>B_4),"Yes", IF(AND(J_4="Yes",J_1="Yes",J_2="No",J_3="No",J_5="Yes",MIN(B_4,B_1,B_5)<B_4,MAX(B_4,B_1,B_5)>B_4),"Yes", IF(AND(J_4="Yes",J_1="No",J_2="Yes",J_3="Yes",J_5="No",MIN(B_4,B_2,B_3)<B_4,MAX(B_4,B_2,B_3)>B_4),"Yes", IF(AND(J_4="Yes",J_1="No",J_2="Yes",J_3="No",J_5="Yes",MIN(B_4,B_2,B_5)<B_4,MAX(B_4,B_2,B_5)>B_4),"Yes", IF(AND(J_4="Yes",J_1="No",J_2="No",J_3="Yes",J_5="Yes",MIN(B_4,B_3,B_5)<B_4,MAX(B_4,B_3,B_5)>B_4),"Yes", IF(AND(J_4="Yes",J_1="Yes",J_2="Yes",J_3="Yes",J_5="No",SMALL((B_1,B_2,B_3,B_4),2)=B_4),"Yes", IF(AND(J_4="Yes",J_1="Yes",J_2="Yes",J_3="No",J_5="Yes",SMALL((B_1,B_2,B_4,B_5),2)=B_4),"Yes", IF(AND(J_4="Yes",J_1="Yes",J_2="No",J_3="Yes",J_5="Yes",SMALL((B_1,B_3,B_4,B_5),2)=B_4),"Yes", IF(AND(J_4="Yes",J_1="No",J_2="Yes",J_3="Yes",J_5="Yes",SMALL((B_2,B_3,B_4,B_5),2)=B_4),"Yes", IF(AND(J_4="Yes",J_1="Yes",J_2="Yes",J_3="Yes",J_5="Yes",SMALL((B_1,B_2,B_3,B_4,B_5),2)=B_4),"Yes","No"))))))))))))))))))) ->  | I15: =IF(alpha=1,"",IF(B_5="","",IF(J_5="No","No", IF(AND(J_5="Yes",J_1="No",J_2="No",J_3="No",J_4="No"),"Yes", IF(AND(J_5="Yes",J_1="Yes",J_2="No",J_3="No",J_4="No",MAX(B_1,B_2,B_3,B_4,B_5)=B_5),"Yes", IF(AND(J_5="Yes",J_1="No",J_2="Yes",J_3="No",J_4="No",MAX(B_1,B_2,B_3,B_4,B_5)=B_5),"Yes", IF(AND(J_5="Yes",J_1="No",J_2="No",J_3="Yes",J_4="No",MAX(B_1,B_2,B_3,B_4,B_5)=B_5),"Yes", IF(AND(J_5="Yes",J_1="No",J_2="No",J_3="No",J_4="Yes",MAX(B_1,B_2,B_3,B_4,B_5)=B_5),"Yes", IF(AND(J_5="Yes",J_1="Yes",J_2="Yes",J_3="No",J_4="No",MIN(B_5,B_1,B_2)<B_5,MAX(B_5,B_1,B_2)>B_5),"Yes", IF(AND(J_5="Yes",J_1="Yes",J_2="No",J_3="Yes",J_4="No",MIN(B_5,B_1,B_3)<B_5,MAX(B_5,B_1,B_3)>B_5),"Yes", IF(AND(J_5="Yes",J_1="Yes",J_2="No",J_3="No",J_4="Yes",MIN(B_5,B_1,B_4)<B_5,MAX(B_5,B_1,B_4)>B_5),"Yes", IF(AND(J_5="Yes",J_1="No",J_2="Yes",J_3="Yes",J_4="No",MIN(B_5,B_2,B_3)<B_5,MAX(B_5,B_2,B_3)>B_5),"Yes", IF(AND(J_5="Yes",J_1="No",J_2="Yes",J_3="No",J_4="Yes",MIN(B_5,B_2,B_4)<B_5,MAX(B_5,B_2,B_4)>B_5),"Yes", IF(AND(J_5="Yes",J_1="No",J_2="No",J_3="Yes",J_4="Yes",MIN(B_5,B_3,B_4)<B_5,MAX(B_5,B_3,B_4)>B_5),"Yes", IF(AND(J_5="Yes",J_1="Yes",J_2="Yes",J_3="Yes",J_4="No",SMALL((B_1,B_2,B_3,B_5),2)=B_5),"Yes", IF(AND(J_5="Yes",J_1="Yes",J_2="Yes",J_3="No",J_4="Yes",SMALL((B_1,B_2,B_4,B_5),2)=B_5),"Yes", IF(AND(J_5="Yes",J_1="Yes",J_2="No",J_3="Yes",J_4="Yes",SMALL((B_1,B_3,B_4,B_5),2)=B_5),"Yes", IF(AND(J_5="Yes",J_1="No",J_2="Yes",J_3="Yes",J_4="Yes",SMALL((B_2,B_3,B_4,B_5),2)=B_5),"Yes", IF(AND(J_5="Yes",J_1="Yes",J_2="Yes",J_3="Yes",J_4="Yes",SMALL((B_1,B_2,B_3,B_4,B_5),2)=B_5),"Yes","No"))))))))))))))))))) -> 
D16: Total Cost (AC+K) | E16: =IF(OR(B_1="",C_3=""),"",IF(J_1="No",0,IF(alpha=1,IF(PA_1="Yes",C_1+k,k),IF(AND(J_1="Yes",J_2="No",J_3="No",OR(J_4="No",J_4=""),OR(J_5="No",J_5="")),C_1+k,IF(AND(PA_1="Yes",SA_1="No"),alpha*C_1+k,IF(AND(PA_1="No",SA_1="Yes"),(1-alpha)*C_1+k,k)))))) ->  | F16: =IF(B_3="","",IF(J_2="No",0,IF(alpha=1,IF(PA_2="Yes",C_2+k,k),IF(AND(J_1="No",J_2="Yes",J_3="No",OR(J_4="No",J_4=""),OR(J_5="No",J_5="")),C_2+k,IF(AND(PA_2="Yes",SA_2="No"),alpha*C_2+k,IF(AND(PA_2="No",SA_2="Yes"),(1-alpha)*C_2+k,IF(AND(PA_2="No",SA_2="No"),k))))))) ->  | G16: =IF(B_3="","",IF(J_3="No",0,IF(alpha=1,IF(PA_3="Yes",C_3+k,k),IF(AND(J_1="No",J_2="No",J_3="Yes",OR(J_4="No",J_4=""),OR(J_5="No",J_5="")),C_3+k,IF(AND(PA_3="Yes",SA_3="No"),alpha*C_3+k,IF(AND(PA_3="No",SA_3="Yes"),(1-alpha)*C_3+k,IF(AND(PA_3="No",SA_3="No"),k))))))) ->  | H16: =IF(B_4="","",IF(J_4="No",0,IF(alpha=1,IF(PA_4="Yes",C_4+k,k),IF(AND(J_1="No",J_2="No",J_3="No",J_4="Yes",OR(J_5="No",J_5="")),C_4+k,IF(AND(PA_4="Yes",SA_4="No"),alpha*C_4+k,IF(AND(PA_4="No",SA_4="Yes"),(1-alpha)*C_4+k,IF(AND(PA_4="No",SA_4="No"),k))))))) ->  | I16: =IF(B_5="","",IF(J_5="No",0,IF(alpha=1,IF(PA_5="Yes",C_5+k,k),IF(AND(J_1="No",J_2="No",J_3="No",OR(J_4="No",J_4=""),J_5="Yes"),C_5+k,IF(AND(PA_5="Yes",SA_5="No"),alpha*C_5+k,IF(AND(PA_5="No",SA_5="Yes"),(1-alpha)*C_5+k,IF(AND(PA_5="No",SA_5="No"),k))))))) -> 
A17: Next Period: | B17: 1 | D17: Revenue (Ab) | E17: =IF(T_1="","",IF(B2=FALSE,E6,IF(E6=0,0,IF(E11=E7,100,INDEX(E7:I7,MATCH(E11+0.000001,E7:I7,-1)))*IF(AND(PA_1="Yes",OR(alpha=1,SA_1="Yes")),1,IF(AND(PA_1="Yes",SA_1="No"),alpha,IF(AND(PA_1="No",SA_1="Yes"),1-alpha,0)))))) ->  | F17: =IF(T_2="","",IF(B2=FALSE,F6,IF(F6=0,0,IF(F11=E7,100,INDEX(E7:I7,MATCH(F11+0.000001,E7:I7,-1)))*IF(AND(PA_2="Yes",OR(alpha=1,SA_2="Yes")),1,IF(AND(PA_2="Yes",SA_2="No"),alpha,IF(AND(PA_2="No",SA_2="Yes"),1-alpha,0)))))) ->  | G17: =IF(T_3="","",IF(B2=FALSE,G6,IF(G6=0,0,IF(G11=E7,100,INDEX(E7:I7,MATCH(G11+0.000001,E7:I7,-1)))*IF(AND(PA_3="Yes",OR(alpha=1,SA_3="Yes")),1,IF(AND(PA_3="Yes",SA_3="No"),alpha,IF(AND(PA_3="No",SA_3="Yes"),1-alpha,0)))))) ->  | H17: =IF(N=3,"",IF(T_4="","",IF(B2=FALSE,H6,IF(H6=0,0,IF(H11=E7,100,INDEX(E7:I7,MATCH(H11+0.000001,E7:I7,-1)))*IF(AND(PA_4="Yes",OR(alpha=1,SA_4="Yes")),1,IF(AND(PA_4="Yes",SA_4="No"),alpha,IF(AND(PA_4="No",SA_4="Yes"),1-alpha,0))))))) ->  | I17: =IF(N=3,"",IF(T_5="","",IF(B2=FALSE,I6,IF(I6=0,0,IF(I11=E7,100,INDEX(E7:I7,MATCH(I11+0.000001,E7:I7,-1)))*IF(AND(PA_5="Yes",OR(alpha=1,SA_5="Yes")),1,IF(AND(PA_5="Yes",SA_5="No"),alpha,IF(AND(PA_5="No",SA_5="Yes"),1-alpha,0))))))) -> 
D18: Profit (Ab-AC-K) | E18: =IF(OR(B_1="",C_3=""),"",R_1-T_1) ->  | F18: =IF(OR(B_1="",C_3=""),"",R_2-T_2) ->  | G18: =IF(B_3="","",R_3-T_3) ->  | H18: =IF(B_4="","",R_4-T_4) ->  | I18: =IF(B_5="","",R_5-T_5) -> 
B19: Exterior Parts | C19: Player 1 Won? | D19: Player 2 Won? | E19: Profit | F19: Profit | G19: Profit | H19: Profit | I19: Profit
B20: Antenna
B21: Auxiliary Light
B22: Battery Heaters
B23: Bug Deflectors
B24: Grill Guards
B25: Car Covers
B26: Cargo Mat
B27: Grab Bar
B28: Door Edge Guard
B29: Door Sill Protector
B30: Exterior Lighting
B31: Door handle
B32: Headlight Cover
B33: Headlight Guard
B34: License Frames
B35: Lift Support
B36: Mud Guards
B37: Step Bar
B38: Roll Bars
B39: Running Board
B40: Average

Sheet Integral chart
D1: Integration part in Equation (2) of Klotz and Chatterjee (1995)
A2: c | B2: b | C2: trapezoid | D2: c (player) | E2: c (Robot 1) | F2: c (Robot 2) | G2: c (Robot 3) | H2: c (Robot 4) | I2: c*
A3: 0 | B3: =((1-alpha^beta)*(1-ca)^(N-1)+alpha^beta*(1-A3)^(N-1)+(N-1)*(1-alpha)^beta*A3*(1-A3)^(N-2))^(1/beta) -> 1 | C3: =(B3+B4)*($A4-$A3)/2 -> 9.998333528e-05 | D3: =IF($A3<=C_1,1*$C3,0) -> 9.998333528e-05 | E3: =IF($A3<=C_2,1*$C3,0) -> 9.998333528e-05 | F3: =IF($A3<=C_3,1*$C3,0) -> 9.998333528e-05 | G3: =IF($A3<=C_4,1*$C3,0) -> 9.998333528e-05 | H3: =IF($A3<=C_5,1*$C3,0) -> 9.998333528e-05 | I3: =IF($A3<=ca,1*$C3,0) -> 9.998333528e-05
A4: 0.0001 | B4: 0.9996667056 | C4: =(B4+B5)*(A5-A4)/2 -> 9.995000972e-05 | D4: 0 | E4: 0 | F4: 0 | G4: 0 | H4: 0 | I4: 9.995000972e-05
A5: 0.0002 | B5: 0.9993334889 | C5: =(B5+B6)*(A6-A5)/2 -> 9.991669194e-05 | D5: 0 | E5: 0 | F5: 0 | G5: 0 | H5: 0 | I5: 9.991669194e-05
A6: 0.0003 | B6: 0.99900035 | C6: 9.988338194e-05 | D6: 0 | E6: 0 | F6: 0 | G6: 0 | H6: 0 | I6: 9.988338194e-05
A7: 0.0004 | B7: 0.9986672888 | C7: 9.985007971e-05 | D7: 0 | E7: 0 | F7: 0 | G7: 0 | H7: 0 | I7: 9.985007971e-05
A8: 0.0005 | B8: 0.9983343053 | C8: 9.981678525e-05 | D8: 0 | E8: 0 | F8: 0 | G8: 0 | H8: 0 | I8: 9.981678525e-05
A9: 0.0006 | B9: 0.9980013996 | C9: 9.978349856e-05 | D9: 0 | E9: 0 | F9: 0 | G9: 0 | H9: 0 | I9: 9.978349856e-05
A10: 0.0007 | B10: 0.9976685716 | C10: 9.975021965e-05 | D10: 0 | E10: 0 | F10: 0 | G10: 0 | H10: 0 | I10: 9.975021965e-05
A11: 0.0008 | B11: 0.9973358213 | C11: 9.97169485e-05 | D11: 0 | E11: 0 | F11: 0 | G11: 0 | H11: 0 | I11: 9.97169485e-05
A12: 0.0009 | B12: 0.9970031487 | C12: 9.968368513e-05 | D12: 0 | E12: 0 | F12: 0 | G12: 0 | H12: 0 | I12: 9.968368513e-05
A13: 0.001 | B13: 0.9966705538 | C13: 9.965042952e-05 | D13: 0 | E13: 0 | F13: 0 | G13: 0 | H13: 0 | I13: 9.965042952e-05
A14: 0.0011 | B14: 0.9963380366 | C14: 9.961718168e-05 | D14: 0 | E14: 0 | F14: 0 | G14: 0 | H14: 0 | I14: 9.961718168e-05
A15: 0.0012 | B15: 0.996005597 | C15: 9.958394161e-05 | D15: 0 | E15: 0 | F15: 0 | G15: 0 | H15: 0 | I15: 9.958394161e-05
A16: 0.0013 | B16: 0.9956732351 | C16: 9.95507093e-05 | D16: 0 | E16: 0 | F16: 0 | G16: 0 | H16: 0 | I16: 9.95507093e-05
A17: 0.0014 | B17: 0.9953409508 | C17: 9.951748475e-05 | D17: 0 | E17: 0 | F17: 0 | G17: 0 | H17: 0 | I17: 9.951748475e-05
A18: 0.0015 | B18: 0.9950087442 | C18: 9.948426797e-05 | D18: 0 | E18: 0 | F18: 0 | G18: 0 | H18: 0 | I18: 9.948426797e-05
A19: 0.0016 | B19: 0.9946766151 | C19: 9.945105894e-05 | D19: 0 | E19: 0 | F19: 0 | G19: 0 | H19: 0 | I19: 9.945105894e-05
A20: 0.0017 | B20: 0.9943445637 | C20: 9.941785768e-05 | D20: 0 | E20: 0 | F20: 0 | G20: 0 | H20: 0 | I20: 9.941785768e-05
A21: 0.0018 | B21: 0.9940125899 | C21: 9.938466418e-05 | D21: 0 | E21: 0 | F21: 0 | G21: 0 | H21: 0 | I21: 9.938466418e-05
A22: 0.0019 | B22: 0.9936806937 | C22: 9.935147844e-05 | D22: 0 | E22: 0 | F22: 0 | G22: 0 | H22: 0 | I22: 9.935147844e-05
A23: 0.002 | B23: 0.9933488751 | C23: 9.931830045e-05 | D23: 0 | E23: 0 | F23: 0 | G23: 0 | H23: 0 | I23: 9.931830045e-05
A24: 0.0021 | B24: 0.993017134 | C24: 9.928513022e-05 | D24: 0 | E24: 0 | F24: 0 | G24: 0 | H24: 0 | I24: 9.928513022e-05
A25: 0.0022 | B25: 0.9926854705 | C25: 9.925196775e-05 | D25: 0 | E25: 0 | F25: 0 | G25: 0 | H25: 0 | I25: 9.925196775e-05
A26: 0.0023 | B26: 0.9923538845 | C26: 9.921881303e-05 | D26: 0 | E26: 0 | F26: 0 | G26: 0 | H26: 0 | I26: 9.921881303e-05
A27: 0.0024 | B27: 0.9920223761 | C27: 9.918566607e-05 | D27: 0 | E27: 0 | F27: 0 | G27: 0 | H27: 0 | I27: 9.918566607e-05
A28: 0.0025 | B28: 0.9916909452 | C28: 9.915252685e-05 | D28: 0 | E28: 0 | F28: 0 | G28: 0 | H28: 0 | I28: 9.915252685e-05
A29: 0.0026 | B29: 0.9913595919 | C29: 9.911939539e-05 | D29: 0 | E29: 0 | F29: 0 | G29: 0 | H29: 0 | I29: 9.911939539e-05
A30: 0.0027 | B30: 0.991028316 | C30: 9.908627168e-05 | D30: 0 | E30: 0 | F30: 0 | G30: 0 | H30: 0 | I30: 9.908627168e-05
A31: 0.0028 | B31: 0.9906971176 | C31: 9.905315572e-05 | D31: 0 | E31: 0 | F31: 0 | G31: 0 | H31: 0 | I31: 9.905315572e-05
A32: 0.0029 | B32: 0.9903659967 | C32: 9.90200475e-05 | D32: 0 | E32: 0 | F32: 0 | G32: 0 | H32: 0 | I32: 9.90200475e-05
A33: 0.003 | B33: 0.9900349533 | C33: 9.898694704e-05 | D33: 0 | E33: 0 | F33: 0 | G33: 0 | H33: 0 | I33: 9.898694704e-05
A34: 0.0031 | B34: 0.9897039874 | C34: 9.895385432e-05 | D34: 0 | E34: 0 | F34: 0 | G34: 0 | H34: 0 | I34: 9.895385432e-05
A35: 0.0032 | B35: 0.9893730989 | C35: =(B35+B36)*(A36-A35)/2 -> 9.892076934e-05 | D35: 0 | E35: 0 | F35: 0 | G35: 0 | H35: 0 | I35: 9.892076934e-05
A36: 0.0033 | B36: 0.9890422879 | C36: 9.888769211e-05 | D36: 0 | E36: 0 | F36: 0 | G36: 0 | H36: 0 | I36: 9.888769211e-05
A37: 0.0034 | B37: 0.9887115543 | C37: 9.885462262e-05 | D37: 0 | E37: 0 | F37: 0 | G37: 0 | H37: 0 | I37: 9.885462262e-05
A38: 0.0035 | B38: 0.9883808981 | C38: 9.882156088e-05 | D38: 0 | E38: 0 | F38: 0 | G38: 0 | H38: 0 | I38: 9.882156088e-05
A39: 0.0036 | B39: 0.9880503194 | C39: 9.878850687e-05 | D39: 0 | E39: 0 | F39: 0 | G39: 0 | H39: 0 | I39: 9.878850687e-05
A40: 0.0037 | B40: 0.987719818 | C40: 9.875546061e-05 | D40: 0 | E40: 0 | F40: 0 | G40: 0 | H40: 0 | I40: 9.875546061e-05
A41: 0.0038 | B41: 0.9873893941 | C41: 9.872242208e-05 | D41: 0 | E41: 0 | F41: 0 | G41: 0 | H41: 0 | I41: 9.872242208e-05
A42: 0.0039 | B42: 0.9870590475 | C42: 9.868939129e-05 | D42: 0 | E42: 0 | F42: 0 | G42: 0 | H42: 0 | I42: 9.868939129e-05
A43: 0.004 | B43: 0.9867287783 | C43: 9.865636824e-05 | D43: 0 | E43: 0 | F43: 0 | G43: 0 | H43: 0 | I43: 9.865636824e-05
A44: 0.0041 | B44: 0.9863985865 | C44: 9.862335292e-05 | D44: 0 | E44: 0 | F44: 0 | G44: 0 | H44: 0 | I44: 9.862335292e-05
A45: 0.0042 | B45: 0.986068472 | C45: 9.859034534e-05 | D45: 0 | E45: 0 | F45: 0 | G45: 0 | H45: 0 | I45: 9.859034534e-05
A46: 0.0043 | B46: 0.9857384349 | C46: 9.855734549e-05 | D46: 0 | E46: 0 | F46: 0 | G46: 0 | H46: 0 | I46: 9.855734549e-05
A47: 0.0044 | B47: 0.985408475 | C47: 9.852435338e-05 | D47: 0 | E47: 0 | F47: 0 | G47: 0 | H47: 0 | I47: 9.852435338e-05
A48: 0.0045 | B48: 0.9850785926 | C48: 9.8491369e-05 | D48: 0 | E48: 0 | F48: 0 | G48: 0 | H48: 0 | I48: 9.8491369e-05
A49: 0.0046 | B49: 0.9847487874 | C49: 9.845839234e-05 | D49: 0 | E49: 0 | F49: 0 | G49: 0 | H49: 0 | I49: 9.845839234e-05
A50: 0.0047 | B50: 0.9844190595 | C50: 9.842542342e-05 | D50: 0 | E50: 0 | F50: 0 | G50: 0 | H50: 0 | I50: 9.842542342e-05
A51: 0.0048 | B51: 0.9840894089 | C51: 9.839246223e-05 | D51: 0 | E51: 0 | F51: 0 | G51: 0 | H51: 0 | I51: 9.839246223e-05
A52: 0.0049 | B52: 0.9837598356 | C52: 9.835950876e-05 | D52: 0 | E52: 0 | F52: 0 | G52: 0 | H52: 0 | I52: 9.835950876e-05
A53: 0.005 | B53: 0.9834303396 | C53: 9.832656302e-05 | D53: 0 | E53: 0 | F53: 0 | G53: 0 | H53: 0 | I53: 9.832656302e-05
A54: 0.0051 | B54: 0.9831009208 | C54: 9.829362501e-05 | D54: 0 | E54: 0 | F54: 0 | G54: 0 | H54: 0 | I54: 9.829362501e-05
A55: 0.0052 | B55: 0.9827715793 | C55: 9.826069472e-05 | D55: 0 | E55: 0 | F55: 0 | G55: 0 | H55: 0 | I55: 9.826069472e-05
A56: 0.0053 | B56: 0.982442315 | C56: 9.822777215e-05 | D56: 0 | E56: 0 | F56: 0 | G56: 0 | H56: 0 | I56: 9.822777215e-05
A57: 0.0054 | B57: 0.982113128 | C57: 9.81948573e-05 | D57: 0 | E57: 0 | F57: 0 | G57: 0 | H57: 0 | I57: 9.81948573e-05
A58: 0.0055 | B58: 0.9817840181 | C58: 9.816195018e-05 | D58: 0 | E58: 0 | F58: 0 | G58: 0 | H58: 0 | I58: 9.816195018e-05
A59: 0.0056 | B59: 0.9814549855 | C59: 9.812905078e-05 | D59: 0 | E59: 0 | F59: 0 | G59: 0 | H59: 0 | I59: 9.812905078e-05
A60: 0.0057 | B60: 0.9811260301 | C60: 9.809615909e-05 | D60: 0 | E60: 0 | F60: 0 | G60: 0 | H60: 0 | I60: 9.809615909e-05
A61: 0.0058 | B61: 0.9807971518 | C61: 9.806327513e-05 | D61: 0 | E61: 0 | F61: 0 | G61: 0 | H61: 0 | I61: 9.806327513e-05
A62: 0.0059 | B62: 0.9804683508 | C62: 9.803039888e-05 | D62: 0 | E62: 0 | F62: 0 | G62: 0 | H62: 0 | I62: 9.803039888e-05
A63: 0.006 | B63: 0.9801396269 | C63: 9.799753035e-05 | D63: 0 | E63: 0 | F63: 0 | G63: 0 | H63: 0 | I63: 9.799753035e-05
A64: 0.0061 | B64: 0.9798109801 | C64: 9.796466953e-05 | D64: 0 | E64: 0 | F64: 0 | G64: 0 | H64: 0 | I64: 9.796466953e-05
A65: 0.0062 | B65: 0.9794824105 | C65: 9.793181643e-05 | D65: 0 | E65: 0 | F65: 0 | G65: 0 | H65: 0 | I65: 9.793181643e-05
A66: 0.0063 | B66: 0.979153918 | C66: 9.789897104e-05 | D66: 0 | E66: 0 | F66: 0 | G66: 0 | H66: 0 | I66: 9.789897104e-05
A67: 0.0064 | B67: =((1-alpha^beta)*(1-ca)^(N-1)+alpha^beta*(1-A67)^(N-1)+(N-1)*(1-alpha)^beta*A67*(1-A67)^(N-2))^(1/beta) -> 0.9788255027 | C67: =(B67+B68)*(A68-A67)/2 -> 9.786613336e-05 | D67: =IF($A67<=C_1,1*$C67,0) -> 0 | E67: =IF($A67<=C_2,1*$C67,0) -> 0 | F67: =IF($A67<=C_3,1*$C67,0) -> 0 | G67: =IF($A67<=C_4,1*$C67,0) -> 0 | H67: =IF($A67<=C_5,1*$C67,0) -> 0 | I67: =IF($A67<=ca,1*$C67,0) -> 9.786613336e-05
A68: 0.0065 | B68: 0.9784971645 | C68: 9.783330339e-05 | D68: 0 | E68: 0 | F68: 0 | G68: 0 | H68: 0 | I68: 9.783330339e-05
A69: 0.0066 | B69: 0.9781689034 | C69: 9.780048114e-05 | D69: 0 | E69: 0 | F69: 0 | G69: 0 | H69: 0 | I69: 9.780048114e-05
A70: 0.0067 | B70: 0.9778407193 | C70: 9.776766659e-05 | D70: 0 | E70: 0 | F70: 0 | G70: 0 | H70: 0 | I70: 9.776766659e-05
A71: 0.0068 | B71: 0.9775126124 | C71: 9.773485975e-05 | D71: 0 | E71: 0 | F71: 0 | G71: 0 | H71: 0 | I71: 9.773485975e-05
A72: 0.0069 | B72: 0.9771845825 | C72: 9.770206061e-05 | D72: 0 | E72: 0 | F72: 0 | G72: 0 | H72: 0 | I72: 9.770206061e-05
A73: 0.007 | B73: 0.9768566297 | C73: 9.766926919e-05 | D73: 0 | E73: 0 | F73: 0 | G73: 0 | H73: 0 | I73: 9.766926919e-05
A74: 0.0071 | B74: 0.976528754 | C74: 9.763648546e-05 | D74: 0 | E74: 0 | F74: 0 | G74: 0 | H74: 0 | I74: 9.763648546e-05
A75: 0.0072 | B75: 0.9762009553 | C75: 9.760370944e-05 | D75: 0 | E75: 0 | F75: 0 | G75: 0 | H75: 0 | I75: 9.760370944e-05
A76: 0.0073 | B76: 0.9758732336 | C76: 9.757094113e-05 | D76: 0 | E76: 0 | F76: 0 | G76: 0 | H76: 0 | I76: 9.757094113e-05
A77: 0.0074 | B77: 0.9755455889 | C77: 9.753818051e-05 | D77: 0 | E77: 0 | F77: 0 | G77: 0 | H77: 0 | I77: 9.753818051e-05
A78: 0.0075 | B78: 0.9752180213 | C78: 9.75054276e-05 | D78: 0 | E78: 0 | F78: 0 | G78: 0 | H78: 0 | I78: 9.75054276e-05
A79: 0.0076 | B79: 0.9748905306 | C79: 9.747268238e-05 | D79: 0 | E79: 0 | F79: 0 | G79: 0 | H79: 0 | I79: 9.747268238e-05
A80: 0.0077 | B80: 0.974563117 | C80: 9.743994487e-05 | D80: 0 | E80: 0 | F80: 0 | G80: 0 | H80: 0 | I80: 9.743994487e-05
A81: 0.0078 | B81: 0.9742357803 | C81: 9.740721505e-05 | D81: 0 | E81: 0 | F81: 0 | G81: 0 | H81: 0 | I81: 9.740721505e-05
A82: 0.0079 | B82: 0.9739085206 | C82: 9.737449292e-05 | D82: 0 | E82: 0 | F82: 0 | G82: 0 | H82: 0 | I82: 9.737449292e-05
A83: 0.008 | B83: 0.9735813379 | C83: 9.73417785e-05 | D83: 0 | E83: 0 | F83: 0 | G83: 0 | H83: 0 | I83: 9.73417785e-05
A84: 0.0081 | B84: 0.9732542321 | C84: 9.730907177e-05 | D84: 0 | E84: 0 | F84: 0 | G84: 0 | H84: 0 | I84: 9.730907177e-05
A85: 0.0082 | B85: 0.9729272032 | C85: 9.727637273e-05 | D85: 0 | E85: 0 | F85: 0 | G85: 0 | H85: 0 | I85: 9.727637273e-05
A86: 0.0083 | B86: 0.9726002513 | C86: 9.724368138e-05 | D86: 0 | E86: 0 | F86: 0 | G86: 0 | H86: 0 | I86: 9.724368138e-05
A87: 0.0084 | B87: 0.9722733763 | C87: 9.721099772e-05 | D87: 0 | E87: 0 | F87: 0 | G87: 0 | H87: 0 | I87: 9.721099772e-05
A88: 0.0085 | B88: 0.9719465782 | C88: 9.717832176e-05 | D88: 0 | E88: 0 | F88: 0 | G88: 0 | H88: 0 | I88: 9.717832176e-05
A89: 0.0086 | B89: 0.971619857 | C89: 9.714565348e-05 | D89: 0 | E89: 0 | F89: 0 | G89: 0 | H89: 0 | I89: 9.714565348e-05
A90: 0.0087 | B90: 0.9712932127 | C90: 9.71129929e-05 | D90: 0 | E90: 0 | F90: 0 | G90: 0 | H90: 0 | I90: 9.71129929e-05
A91: 0.0088 | B91: 0.9709666452 | C91: 9.708033999e-05 | D91: 0 | E91: 0 | F91: 0 | G91: 0 | H91: 0 | I91: 9.708033999e-05
A92: 0.0089 | B92: 0.9706401547 | C92: 9.704769478e-05 | D92: 0 | E92: 0 | F92: 0 | G92: 0 | H92: 0 | I92: 9.704769478e-05
A93: 0.009 | B93: 0.9703137409 | C93: 9.701505725e-05 | D93: 0 | E93: 0 | F93: 0 | G93: 0 | H93: 0 | I93: 9.701505725e-05
A94: 0.0091 | B94: 0.9699874041 | C94: 9.698242741e-05 | D94: 0 | E94: 0 | F94: 0 | G94: 0 | H94: 0 | I94: 9.698242741e-05
A95: 0.0092 | B95: 0.969661144 | C95: 9.694980524e-05 | D95: 0 | E95: 0 | F95: 0 | G95: 0 | H95: 0 | I95: 9.694980524e-05
A96: 0.0093 | B96: 0.9693349608 | C96: 9.691719076e-05 | D96: 0 | E96: 0 | F96: 0 | G96: 0 | H96: 0 | I96: 9.691719076e-05
A97: 0.0094 | B97: 0.9690088544 | C97: 9.688458396e-05 | D97: 0 | E97: 0 | F97: 0 | G97: 0 | H97: 0 | I97: 9.688458396e-05
A98: 0.0095 | B98: 0.9686828248 | C98: 9.685198484e-05 | D98: 0 | E98: 0 | F98: 0 | G98: 0 | H98: 0 | I98: 9.685198484e-05
A99: 0.0096 | B99: 0.9683568721 | C99: =(B99+B100)*(A100-A99)/2 -> 9.68193934e-05 | D99: 0 | E99: 0 | F99: 0 | G99: 0 | H99: 0 | I99: 9.68193934e-05
A100: 0.0097 | B100: 0.968030996 | C100: =(B100+B101)*(A101-A100)/2 -> 9.678680964e-05 | D100: 0 | E100: 0 | F100: 0 | G100: 0 | H100: 0 | I100: 9.678680964e-05
A101: 0.0098 | B101: 0.9677051968 | C101: =(B101+B102)*(A102-A101)/2 -> 9.675423356e-05 | D101: 0 | E101: 0 | F101: 0 | G101: 0 | H101: 0 | I101: 9.675423356e-05
A102: 0.0099 | B102: 0.9673794743 | C102: =(B102+B103)*(A103-A102)/2 -> 9.672166515e-05 | D102: 0 | E102: 0 | F102: 0 | G102: 0 | H102: 0 | I102: 9.672166515e-05
A103: 0.01 | B103: 0.9670538286 | C103: =(B103+B104)*(A104-A103)/2 -> 9.668910441e-05 | D103: 0 | E103: 0 | F103: 0 | G103: 0 | H103: 0 | I103: 9.668910441e-05
A104: 0.0101 | B104: 0.9667282596 | C104: =(B104+B105)*(A105-A104)/2 -> 9.665655135e-05 | D104: 0 | E104: 0 | F104: 0 | G104: 0 | H104: 0 | I104: 9.665655135e-05
A105: 0.0102 | B105: 0.9664027674 | C105: 9.662400596e-05 | D105: 0 | E105: 0 | F105: 0 | G105: 0 | H105: 0 | I105: 9.662400596e-05
A106: 0.0103 | B106: 0.9660773518 | C106: 9.659146824e-05 | D106: 0 | E106: 0 | F106: 0 | G106: 0 | H106: 0 | I106: 9.659146824e-05
A107: 0.0104 | B107: 0.965752013 | C107: 9.65589382e-05 | D107: 0 | E107: 0 | F107: 0 | G107: 0 | H107: 0 | I107: 9.65589382e-05
A108: 0.0105 | B108: 0.9654267509 | C108: 9.652641582e-05 | D108: 0 | E108: 0 | F108: 0 | G108: 0 | H108: 0 | I108: 9.652641582e-05
A109: 0.0106 | B109: 0.9651015655 | C109: 9.649390111e-05 | D109: 0 | E109: 0 | F109: 0 | G109: 0 | H109: 0 | I109: 9.649390111e-05
A110: 0.0107 | B110: 0.9647764568 | C110: 9.646139407e-05 | D110: 0 | E110: 0 | F110: 0 | G110: 0 | H110: 0 | I110: 9.646139407e-05
A111: 0.0108 | B111: 0.9644514247 | C111: 9.64288947e-05 | D111: 0 | E111: 0 | F111: 0 | G111: 0 | H111: 0 | I111: 9.64288947e-05
A112: 0.0109 | B112: 0.9641264693 | C112: 9.639640299e-05 | D112: 0 | E112: 0 | F112: 0 | G112: 0 | H112: 0 | I112: 9.639640299e-05
A113: 0.011 | B113: 0.9638015905 | C113: 9.636391894e-05 | D113: 0 | E113: 0 | F113: 0 | G113: 0 | H113: 0 | I113: 9.636391894e-05
A114: 0.0111 | B114: 0.9634767884 | C114: 9.633144256e-05 | D114: 0 | E114: 0 | F114: 0 | G114: 0 | H114: 0 | I114: 9.633144256e-05
A115: 0.0112 | B115: 0.9631520629 | C115: 9.629897384e-05 | D115: 0 | E115: 0 | F115: 0 | G115: 0 | H115: 0 | I115: 9.629897384e-05
A116: 0.0113 | B116: 0.962827414 | C116: 9.626651279e-05 | D116: 0 | E116: 0 | F116: 0 | G116: 0 | H116: 0 | I116: 9.626651279e-05
A117: 0.0114 | B117: 0.9625028417 | C117: 9.623405939e-05 | D117: 0 | E117: 0 | F117: 0 | G117: 0 | H117: 0 | I117: 9.623405939e-05
A118: 0.0115 | B118: 0.9621783461 | C118: 9.620161365e-05 | D118: 0 | E118: 0 | F118: 0 | G118: 0 | H118: 0 | I118: 9.620161365e-05
A119: 0.0116 | B119: 0.961853927 | C119: 9.616917557e-05 | D119: 0 | E119: 0 | F119: 0 | G119: 0 | H119: 0 | I119: 9.616917557e-05
A120: 0.0117 | B120: 0.9615295845 | C120: 9.613674515e-05 | D120: 0 | E120: 0 | F120: 0 | G120: 0 | H120: 0 | I120: 9.613674515e-05
A121: 0.0118 | B121: 0.9612053185 | C121: 9.610432239e-05 | D121: 0 | E121: 0 | F121: 0 | G121: 0 | H121: 0 | I121: 9.610432239e-05
A122: 0.0119 | B122: 0.9608811292 | C122: 9.607190727e-05 | D122: 0 | E122: 0 | F122: 0 | G122: 0 | H122: 0 | I122: 9.607190727e-05
A123: 0.012 | B123: 0.9605570163 | C123: 9.603949982e-05 | D123: 0 | E123: 0 | F123: 0 | G123: 0 | H123: 0 | I123: 9.603949982e-05
A124: 0.0121 | B124: 0.96023298 | C124: 9.600710001e-05 | D124: 0 | E124: 0 | F124: 0 | G124: 0 | H124: 0 | I124: 9.600710001e-05
A125: 0.0122 | B125: 0.9599090202 | C125: 9.597470786e-05 | D125: 0 | E125: 0 | F125: 0 | G125: 0 | H125: 0 | I125: 9.597470786e-05
A126: 0.0123 | B126: 0.959585137 | C126: 9.594232336e-05 | D126: 0 | E126: 0 | F126: 0 | G126: 0 | H126: 0 | I126: 9.594232336e-05
A127: 0.0124 | B127: 0.9592613302 | C127: 9.590994651e-05 | D127: 0 | E127: 0 | F127: 0 | G127: 0 | H127: 0 | I127: 9.590994651e-05
A128: 0.0125 | B128: 0.9589376 | C128: 9.587757731e-05 | D128: 0 | E128: 0 | F128: 0 | G128: 0 | H128: 0 | I128: 9.587757731e-05
A129: 0.0126 | B129: 0.9586139462 | C129: 9.584521575e-05 | D129: 0 | E129: 0 | F129: 0 | G129: 0 | H129: 0 | I129: 9.584521575e-05
A130: 0.0127 | B130: 0.9582903689 | C130: 9.581286185e-05 | D130: 0 | E130: 0 | F130: 0 | G130: 0 | H130: 0 | I130: 9.581286185e-05
A131: 0.0128 | B131: =((1-alpha^beta)*(1-ca)^(N-1)+alpha^beta*(1-A131)^(N-1)+(N-1)*(1-alpha)^beta*A131*(1-A131)^(N-2))^(1/beta) -> 0.9579668681 | C131: 9.578051559e-05 | D131: =IF($A131<=C_1,1*$C131,0) -> 0 | E131: =IF($A131<=C_2,1*$C131,0) -> 0 | F131: =IF($A131<=C_3,1*$C131,0) -> 0 | G131: =IF($A131<=C_4,1*$C131,0) -> 0 | H131: =IF($A131<=C_5,1*$C131,0) -> 0 | I131: =IF($A131<=ca,1*$C131,0) -> 9.578051559e-05
A132: 0.0129 | B132: 0.9576434437 | C132: 9.574817697e-05 | D132: 0 | E132: 0 | F132: 0 | G132: 0 | H132: 0 | I132: 9.574817697e-05
A133: 0.013 | B133: 0.9573200957 | C133: 9.5715846e-05 | D133: 0 | E133: 0 | F133: 0 | G133: 0 | H133: 0 | I133: 9.5715846e-05
A134: 0.0131 | B134: 0.9569968242 | C134: 9.568352267e-05 | D134: 0 | E134: 0 | F134: 0 | G134: 0 | H134: 0 | I134: 9.568352267e-05
A135: 0.0132 | B135: 0.9566736291 | C135: 9.565120698e-05 | D135: 0 | E135: 0 | F135: 0 | G135: 0 | H135: 0 | I135: 9.565120698e-05
A136: 0.0133 | B136: 0.9563505105 | C136: 9.561889893e-05 | D136: 0 | E136: 0 | F136: 0 | G136: 0 | H136: 0 | I136: 9.561889893e-05
A137: 0.0134 | B137: 0.9560274682 | C137: 9.558659852e-05 | D137: 0 | E137: 0 | F137: 0 | G137: 0 | H137: 0 | I137: 9.558659852e-05
A138: 0.0135 | B138: 0.9557045023 | C138: 9.555430575e-05 | D138: 0 | E138: 0 | F138: 0 | G138: 0 | H138: 0 | I138: 9.555430575e-05
A139: 0.0136 | B139: 0.9553816128 | C139: 9.552202062e-05 | D139: 0 | E139: 0 | F139: 0 | G139: 0 | H139: 0 | I139: 9.552202062e-05
A140: 0.0137 | B140: 0.9550587997 | C140: 9.548974313e-05 | D140: 0 | E140: 0 | F140: 0 | G140: 0 | H140: 0 | I140: 9.548974313e-05
A141: 0.0138 | B141: 0.9547360629 | C141: 9.545747327e-05 | D141: 0 | E141: 0 | F141: 0 | G141: 0 | H141: 0 | I141: 9.545747327e-05
A142: 0.0139 | B142: 0.9544134025 | C142: 9.542521104e-05 | D142: 0 | E142: 0 | F142: 0 | G142: 0 | H142: 0 | I142: 9.542521104e-05
A143: 0.014 | B143: 0.9540908184 | C143: 9.539295645e-05 | D143: 0 | E143: 0 | F143: 0 | G143: 0 | H143: 0 | I143: 9.539295645e-05
A144: 0.0141 | B144: 0.9537683106 | C144: 9.536070949e-05 | D144: 0 | E144: 0 | F144: 0 | G144: 0 | H144: 0 | I144: 9.536070949e-05
A145: 0.0142 | B145: 0.9534458792 | C145: 9.532847016e-05 | D145: 0 | E145: 0 | F145: 0 | G145: 0 | H145: 0 | I145: 9.532847016e-05
A146: 0.0143 | B146: 0.9531235241 | C146: 9.529623847e-05 | D146: 0 | E146: 0 | F146: 0 | G146: 0 | H146: 0 | I146: 9.529623847e-05
A147: 0.0144 | B147: 0.9528012452 | C147: 9.52640144e-05 | D147: 0 | E147: 0 | F147: 0 | G147: 0 | H147: 0 | I147: 9.52640144e-05
A148: 0.0145 | B148: 0.9524790427 | C148: 9.523179796e-05 | D148: 0 | E148: 0 | F148: 0 | G148: 0 | H148: 0 | I148: 9.523179796e-05
A149: 0.0146 | B149: 0.9521569164 | C149: 9.519958914e-05 | D149: 0 | E149: 0 | F149: 0 | G149: 0 | H149: 0 | I149: 9.519958914e-05
A150: 0.0147 | B150: 0.9518348665 | C150: 9.516738796e-05 | D150: 0 | E150: 0 | F150: 0 | G150: 0 | H150: 0 | I150: 9.516738796e-05
A151: 0.0148 | B151: 0.9515128927 | C151: 9.51351944e-05 | D151: 0 | E151: 0 | F151: 0 | G151: 0 | H151: 0 | I151: 9.51351944e-05
A152: 0.0149 | B152: 0.9511909952 | C152: 9.510300846e-05 | D152: 0 | E152: 0 | F152: 0 | G152: 0 | H152: 0 | I152: 9.510300846e-05
A153: 0.015 | B153: 0.950869174 | C153: 9.507083015e-05 | D153: 0 | E153: 0 | F153: 0 | G153: 0 | H153: 0 | I153: 9.507083015e-05
A154: 0.0151 | B154: 0.9505474289 | C154: 9.503865945e-05 | D154: 0 | E154: 0 | F154: 0 | G154: 0 | H154: 0 | I154: 9.503865945e-05
A155: 0.0152 | B155: 0.9502257601 | C155: 9.500649638e-05 | D155: 0 | E155: 0 | F155: 0 | G155: 0 | H155: 0 | I155: 9.500649638e-05
A156: 0.0153 | B156: 0.9499041675 | C156: 9.497434093e-05 | D156: 0 | E156: 0 | F156: 0 | G156: 0 | H156: 0 | I156: 9.497434093e-05
A157: 0.0154 | B157: 0.9495826511 | C157: 9.49421931e-05 | D157: 0 | E157: 0 | F157: 0 | G157: 0 | H157: 0 | I157: 9.49421931e-05
A158: 0.0155 | B158: 0.9492612109 | C158: 9.491005289e-05 | D158: 0 | E158: 0 | F158: 0 | G158: 0 | H158: 0 | I158: 9.491005289e-05
A159: 0.0156 | B159: 0.9489398468 | C159: 9.487792029e-05 | D159: 0 | E159: 0 | F159: 0 | G159: 0 | H159: 0 | I159: 9.487792029e-05
A160: 0.0157 | B160: 0.948618559 | C160: 9.484579531e-05 | D160: 0 | E160: 0 | F160: 0 | G160: 0 | H160: 0 | I160: 9.484579531e-05
A161: 0.0158 | B161: 0.9482973472 | C161: 9.481367794e-05 | D161: 0 | E161: 0 | F161: 0 | G161: 0 | H161: 0 | I161: 9.481367794e-05
A162: 0.0159 | B162: 0.9479762116 | C162: 9.478156819e-05 | D162: 0 | E162: 0 | F162: 0 | G162: 0 | H162: 0 | I162: 9.478156819e-05
A163: 0.016 | B163: 0.9476551522 | C163: 9.474946605e-05 | D163: 0 | E163: 0 | F163: 0 | G163: 0 | H163: 0 | I163: 9.474946605e-05
A164: 0.0161 | B164: 0.9473341688 | C164: 9.471737152e-05 | D164: 0 | E164: 0 | F164: 0 | G164: 0 | H164: 0 | I164: 9.471737152e-05
A165: 0.0162 | B165: 0.9470132616 | C165: 9.468528461e-05 | D165: 0 | E165: 0 | F165: 0 | G165: 0 | H165: 0 | I165: 9.468528461e-05
A166: 0.0163 | B166: 0.9466924305 | C166: 9.46532053e-05 | D166: 0 | E166: 0 | F166: 0 | G166: 0 | H166: 0 | I166: 9.46532053e-05
A167: 0.0164 | B167: 0.9463716755 | C167: 9.46211336e-05 | D167: 0 | E167: 0 | F167: 0 | G167: 0 | H167: 0 | I167: 9.46211336e-05
A168: 0.0165 | B168: 0.9460509965 | C168: =(B168+B169)*(A169-A168)/2 -> 9.458906951e-05 | D168: 0 | E168: 0 | F168: 0 | G168: 0 | H168: 0 | I168: 9.458906951e-05
A169: 0.0166 | B169: 0.9457303937 | C169: 9.455701303e-05 | D169: 0 | E169: 0 | F169: 0 | G169: 0 | H169: 0 | I169: 9.455701303e-05
A170: 0.0167 | B170: 0.9454098668 | C170: 9.452496415e-05 | D170: 0 | E170: 0 | F170: 0 | G170: 0 | H170: 0 | I170: 9.452496415e-05
A171: 0.0168 | B171: 0.9450894161 | C171: 9.449292287e-05 | D171: 0 | E171: 0 | F171: 0 | G171: 0 | H171: 0 | I171: 9.449292287e-05
A172: 0.0169 | B172: 0.9447690414 | C172: 9.44608892e-05 | D172: 0 | E172: 0 | F172: 0 | G172: 0 | H172: 0 | I172: 9.44608892e-05
A173: 0.017 | B173: 0.9444487427 | C173: 9.442886313e-05 | D173: 0 | E173: 0 | F173: 0 | G173: 0 | H173: 0 | I173: 9.442886313e-05
A174: 0.0171 | B174: 0.94412852 | C174: 9.439684467e-05 | D174: 0 | E174: 0 | F174: 0 | G174: 0 | H174: 0 | I174: 9.439684467e-05
A175: 0.0172 | B175: 0.9438083733 | C175: 9.43648338e-05 | D175: 0 | E175: 0 | F175: 0 | G175: 0 | H175: 0 | I175: 9.43648338e-05
A176: 0.0173 | B176: 0.9434883027 | C176: 9.433283053e-05 | D176: 0 | E176: 0 | F176: 0 | G176: 0 | H176: 0 | I176: 9.433283053e-05
A177: 0.0174 | B177: 0.943168308 | C177: 9.430083487e-05 | D177: 0 | E177: 0 | F177: 0 | G177: 0 | H177: 0 | I177: 9.430083487e-05
A178: 0.0175 | B178: 0.9428483893 | C178: 9.426884679e-05 | D178: 0 | E178: 0 | F178: 0 | G178: 0 | H178: 0 | I178: 9.426884679e-05
A179: 0.0176 | B179: 0.9425285466 | C179: 9.423686632e-05 | D179: 0 | E179: 0 | F179: 0 | G179: 0 | H179: 0 | I179: 9.423686632e-05
A180: 0.0177 | B180: 0.9422087798 | C180: 9.420489344e-05 | D180: 0 | E180: 0 | F180: 0 | G180: 0 | H180: 0 | I180: 9.420489344e-05
A181: 0.0178 | B181: 0.941889089 | C181: 9.417292816e-05 | D181: 0 | E181: 0 | F181: 0 | G181: 0 | H181: 0 | I181: 9.417292816e-05
A182: 0.0179 | B182: 0.9415694741 | C182: 9.414097046e-05 | D182: 0 | E182: 0 | F182: 0 | G182: 0 | H182: 0 | I182: 9.414097046e-05
A183: 0.018 | B183: 0.9412499352 | C183: 9.410902036e-05 | D183: 0 | E183: 0 | F183: 0 | G183: 0 | H183: 0 | I183: 9.410902036e-05
A184: 0.0181 | B184: 0.9409304721 | C184: 9.407707786e-05 | D184: 0 | E184: 0 | F184: 0 | G184: 0 | H184: 0 | I184: 9.407707786e-05
A185: 0.0182 | B185: 0.940611085 | C185: 9.404514294e-05 | D185: 0 | E185: 0 | F185: 0 | G185: 0 | H185: 0 | I185: 9.404514294e-05
A186: 0.0183 | B186: 0.9402917737 | C186: 9.401321561e-05 | D186: 0 | E186: 0 | F186: 0 | G186: 0 | H186: 0 | I186: 9.401321561e-05
A187: 0.0184 | B187: 0.9399725384 | C187: 9.398129587e-05 | D187: 0 | E187: 0 | F187: 0 | G187: 0 | H187: 0 | I187: 9.398129587e-05
A188: 0.0185 | B188: 0.9396533789 | C188: 9.394938371e-05 | D188: 0 | E188: 0 | F188: 0 | G188: 0 | H188: 0 | I188: 9.394938371e-05
A189: 0.0186 | B189: 0.9393342953 | C189: 9.391747914e-05 | D189: 0 | E189: 0 | F189: 0 | G189: 0 | H189: 0 | I189: 9.391747914e-05
A190: 0.0187 | B190: 0.9390152876 | C190: 9.388558216e-05 | D190: 0 | E190: 0 | F190: 0 | G190: 0 | H190: 0 | I190: 9.388558216e-05
A191: 0.0188 | B191: 0.9386963556 | C191: 9.385369276e-05 | D191: 0 | E191: 0 | F191: 0 | G191: 0 | H191: 0 | I191: 9.385369276e-05
A192: 0.0189 | B192: 0.9383774996 | C192: 9.382181094e-05 | D192: 0 | E192: 0 | F192: 0 | G192: 0 | H192: 0 | I192: 9.382181094e-05
A193: 0.019 | B193: 0.9380587193 | C193: 9.378993671e-05 | D193: 0 | E193: 0 | F193: 0 | G193: 0 | H193: 0 | I193: 9.378993671e-05
A194: 0.0191 | B194: 0.9377400149 | C194: 9.375807006e-05 | D194: 0 | E194: 0 | F194: 0 | G194: 0 | H194: 0 | I194: 9.375807006e-05
A195: 0.0192 | B195: =((1-alpha^beta)*(1-ca)^(N-1)+alpha^beta*(1-A195)^(N-1)+(N-1)*(1-alpha)^beta*A195*(1-A195)^(N-2))^(1/beta) -> 0.9374213862 | C195: 9.372621098e-05 | D195: =IF($A195<=C_1,1*$C195,0) -> 0 | E195: =IF($A195<=C_2,1*$C195,0) -> 0 | F195: =IF($A195<=C_3,1*$C195,0) -> 0 | G195: =IF($A195<=C_4,1*$C195,0) -> 0 | H195: =IF($A195<=C_5,1*$C195,0) -> 0 | I195: =IF($A195<=ca,1*$C195,0) -> 9.372621098e-05
A196: 0.0193 | B196: 0.9371028334 | C196: 9.369435949e-05 | D196: 0 | E196: 0 | F196: 0 | G196: 0 | H196: 0 | I196: 9.369435949e-05
A197: 0.0194 | B197: 0.9367843563 | C197: 9.366251557e-05 | D197: 0 | E197: 0 | F197: 0 | G197: 0 | H197: 0 | I197: 9.366251557e-05
A198: 0.0195 | B198: 0.936465955 | C198: 9.363067923e-05 | D198: 0 | E198: 0 | F198: 0 | G198: 0 | H198: 0 | I198: 9.363067923e-05
A199: 0.0196 | B199: 0.9361476295 | C199: 9.359885046e-05 | D199: 0 | E199: 0 | F199: 0 | G199: 0 | H199: 0 | I199: 9.359885046e-05
A200: 0.0197 | B200: 0.9358293797 | C200: 9.356702927e-05 | D200: 0 | E200: 0 | F200: 0 | G200: 0 | H200: 0 | I200: 9.356702927e-05
... 9805 more rows
